{"text_format":"1","workbook":"xlsx","n_sheets":9,"sheets":["Copyright","Cover","Instruction","All Result","Sheet1","MEW nonplant","MEW nonplant_WS","MEW plant","MEW plant_WS"],"not_rendered":{"charts":0,"images":0,"macros":1,"external_links":0,"defined_names":0,"comments":3,"pivot_tables":0},"unopened":[],"bounds":{"document_bytes":16777216,"sheet_cells":100000,"rows_first":2000,"rows_last":500,"rows_between":2000,"halvings":0,"cell_chars":16384,"cell_head_chars":4096},"cells_cut":0,"cells_raw":0,"read":"whole","date_system":"1900"}

{"sheet":"Copyright","index":0,"n_rows":0,"n_cols":0,"rows_kept":0,"cut":false,"hidden":false,"merged":[]}

{"sheet":"Cover","index":1,"n_rows":20,"n_cols":7,"rows_kept":20,"cut":false,"hidden":false,"merged":[[18,6,18,8],[14,6,14,8],[13,6,13,8],[4,4,4,10],[9,6,9,8],[12,6,12,8],[5,5,6,9]]}
[]
[]
[]
[]
[null,null,null,null,"Ecotoxicity Data Quality Assessment Method V2"]
[null,null,null,null,null,"To be used to assess the quality of data used for the Australian and New Zealand Guidelines for Fresh and Marine Water Quality (including sediment) and the Australian National Environment Protection (Assessment of Site Contamination) Measure"]
[]
[]
[]
[null,null,null,null,null,null,"Developed by "]
[]
[]
[null,null,null,null,null,null,"Zoe Zhang"]
[null,null,null,null,null,null,"   Dr. Michael Warne"]
[null,null,null,null,null,null,"Alison Vieritz "]
[]
[]
[]
[null,null,null,null,null,null,"Water Quality & Investigations "]
[null,null,null,null,null,"                 Department of Science,Information Technology and Innovation"]

{"sheet":"Instruction","index":2,"n_rows":21,"n_cols":10,"rows_kept":21,"cut":false,"hidden":false,"merged":[[27,6,27,16],[14,6,14,7],[5,4,5,7]]}
[]
[]
[null,"Click here to see \"All Result\" -->","All Result"]
[]
[]
[null,null,null,null,"Freshwater "]
[]
[null,"Tabs contain questionaries -->           ","Freshwater/metal/nonplant",null,"Freshwater/non-metal/non-plant ",null,null,"Freshwater/metal/plant",null,"Freshwater/non-metal/plant"]
[]
[]
[]
[null,"Tabs contain score of paper and short answers to questions -->","Freshwater/metal/nonplant Worksheet",null,"Freshwater/non-metal/non-plant Worksheet",null,null,"Freshwater/metal/plant Worksheet",null,"Freshwater/non-metal/plant/ Worksheet"]
[]
[]
[null,null,"Marine ",null,null,null,"Terrestrial",null,null,"Sediment "]
[]
[null,"Tab contain questionaries -->","Marine or estuarine/non-plant",null,"Marine or estuarine/Plant",null,null,"Terrestrial Data QA",null,"Sediment Data QA"]
[]
[]
[]
[null,"Tab Contains all scores of paper --> ","Marine or estuarine/non-Plant Worksheet",null,"Marine or estuarine/Plant_Worksheet",null,null,"Terrestrial Quality",null,"Sediment Quality"]

{"sheet":"All Result","index":3,"n_rows":43,"n_cols":21,"rows_kept":43,"cut":false,"hidden":false,"merged":[]}
["Chemical:","Copper"]
["Medium:","Marine"]
[{"$f":"'MEW nonplant'!C2","v":"Category"},{"$f":"'MEW nonplant'!C3","v":"Paper and data unique identifier(eg. 1-1,10-150)"},{"$f":"'MEW nonplant'!C70","v":0},{"$f":"'MEW nonplant'!C72","v":0},"Comment ",{"$f":"'MEW nonplant'!G3","v":"Species (Scientific name)"},{"$f":"'MEW nonplant'!G4","v":"Lifestage"},{"$f":"'MEW nonplant'!G5","v":"Exposure duration"},{"$f":"'MEW nonplant'!G6","v":"Measure of toxicity"},{"$f":"'MEW nonplant'!G7","v":"Toxicity endpoint"},{"$f":"'MEW nonplant'!G8","v":"Toxicity value"},{"$f":"'MEW nonplant'!J2","v":"Taxonomic group"},{"$f":"'MEW nonplant'!J3","v":"Phylum"},{"$f":"'MEW nonplant'!J4","v":"Class"},{"$f":"'MEW nonplant'!J5","v":"Media"},{"$f":"'MEW nonplant'!J6","v":"Temperature "},{"$f":"'MEW nonplant'!J7","v":"Acute Or Chronic "},{"$f":"'MEW nonplant'!J8","v":"PH"},"Slinity","Citation","Citation No."]
["MEW_nonplant","1435-2",75,0.7978723404255319,"The highest possible grade for this datum is acceptable.","Haliotis iris","Larvae","3 d","EC10","Normal development",0.70,"Molluscs","Mollusca","Gastropoda","seawater",14,"Chronic",8,"34 ppt","Rouchon, A. (2015). Effects of metal toxicity on the early life stages of the sea urchin Evechinus chloroticus. A thesis submitted to the Victoria University of Wellington in fulfilment of the requirements for the degree of Doctor of Philosophy in Marine Biology. Victoria University of Wellington. 211 p.","1435"]
["MEW_nonplant","1435-1",75,0.7978723404255319,"The highest possible grade for this datum is acceptable.","Evechinus chloroticus","Larvae","3 d","EC10","Normal development",2.10,"Echinoderms","Echinodermata","Echinoidea","seawater",16,"Chronic",8,"34 ppt","Rouchon, A. (2015). Effects of metal toxicity on the early life stages of the sea urchin Evechinus chloroticus. A thesis submitted to the Victoria University of Wellington in fulfilment of the requirements for the degree of Doctor of Philosophy in Marine Biology. Victoria University of Wellington. 211 p.","1435"]
["MEW_nonplant","1442-1",58,0.61702127659574468,"","Platygyra daedalea","Gametes","5 hr","EC10","Fertilisation",1.40,"Cnidaria","Cnidaria","Anthozoa","seawater","NR","Chronic","NR","NR","Reichelt-Brushett A, Hudspith M. (2016). The effects of metals of emerging concern on the fertilization success of gametes of the tropical scleractinian coral Platygyra daedalea. Chemosphere 150, 398-406.","1442"]
["MEW_nonplant","669-1",72,0.76595744680851063,"","Mimachlamys asperrima","Larvae","48 h","NOEC","Normal development",2,"Molluscs","Mollusca","Bivalve","seawater",18,"Chronic","NR","33 ppt","Krassoi R, Anderson I, Everett D. (1997). Larval abnormalities in doughboy scallops Chlamys (Mimachlamys) asperrima I in response to test conditions and six reference toxicants. Australasian Journal of Ecotoxicology 3, 65-74.","669"]
["MEW_plant","1281-2",66,0.72527472527472525,"","Entomoneis c.f. punctulata","Exponentially-growing","72 h","NOEC","Population growth",0.30,"Diatom","Bacillariophyta","Bacillariophyceae","Filtered seawater",21,"Chronic",8,"34 ppt","Stauber JL, Binet MT, Bao VWW, Boge J, Zhang AQ, Leung KMY, Adams MS. (2008). Comparison of the Qwiklite algal bioluminescence test with marine algal growth rate inhibition bioassays. Environmental Toxicology 23, 617-625.","1281"]
["MEW_plant","1181-2 & 1181-",72,0.79120879120879117,"","Phaeodactylum tricornutum","Exponentially-growing","2 d","IC15","Population growth",1.90,"Diatom","Bacillariophyta","Bacillariophyceae","Filtered seawater",21,"Chronic","NR","NR","Simpson SL, Roland MGE, Stauber JL, Batley GE. (2003). Effect of declining toxicant concentrations on algal bioassay endpoints. Environmental Toxicology and Chemistry 22, 2073-2079.","1181"]
["MEW_plant","1379-2",64,0.70329670329670335,"","Phaeodactylum tricornutum","Exponentially-growing","72 h","IC10","Growth",1.50,"Diatom","Bacillariophyta","Bacillariophyceae","Filtered seawater",21,"Chronic",8.1999999999999993,35,"Osborn HL, Hook SE. (2013). Using transcriptomic profiles in the diatom Phaeodactylum tricornutum to identify and prioritize stressors. Aquatic Toxicology 138, 12-25.","1379"]
["MEW_plant","1416-4",79,0.86813186813186816,"","Phaeodactylum tricornutum","Exponentially-growing","72 h","IC20","Population growth",0.70,"Diatom","Bacillariophyta","Bacillariophyceae","Filtered seawater",21,"Chronic","8-8.6","NR","Angel BM, Simpson SL, Chariton AA, Stauber JL, Jolley DF. (2015). Time-averaged copper concentrations from continuous exposures predicts pulsed exposure toxicity to the marine diatom, Phaeodactylum tricornutum: Importance of uptake and elimination. Aquatic Toxicology 164, 1-9.","1416"]
["MEW_plant","1430-1",85,0.93406593406593408,"","Isochrysis galbana","Exponentially-growing","72 h","EC10","Population growth",2.50,"Microalga","Haptophyta","Prymnesiophyceae","Filtered seawater",21,"Chronic",8,35,"Trenfield MA, van Dam JW, Harford AJ, Parry D, Streten C, Gibb K, van Dam RA. (2015). Aluminium, gallium, and molybdenum toxicity to the tropical marine microalga Isochrysis galbana. Environmental Toxicology and Chemistry 34, 1833-1840.","1430"]
["MEW_plant","1287-2",61,0.67032967032967028,"","Tetraselmis sp.","Exponentially-growing","72 h","NOEC","Growth",7,"Green algae","Chlorophyta","Prasinophyceae","Filtered seawater",21,"Chronic",8,"NR","Levy JL, Angel BM, Stauber JL, Poon WL, Simpson SL, Cheng SH, Jolley DF. (2008). Uptake and internalisation of copper by three marine microalgae: Comparison of copper-sensitive and copper-tolerant species. Aquatic Toxicology 89, 82-93.","1287"]
["MEW_plant","1287-2",61,0.67032967032967028,"","Phaeodactylum tricornutum","Exponentially-growing","72 h","NOEC","Growth","<1.5","Diatom","Bacillariophyta","Bacillariophyceae","Filtered seawater",21,"Chronic",8,"NR","Levy JL, Angel BM, Stauber JL, Poon WL, Simpson SL, Cheng SH, Jolley DF. (2008). Uptake and internalisation of copper by three marine microalgae: Comparison of copper-sensitive and copper-tolerant species. Aquatic Toxicology 89, 82-93.","1287"]
["MEW_nonplant","755-1",85,0.9042553191489362,"","Aiptasia pulchella","Adult","28 d","EC10","Reproduction",12,"Cnidaria","Cnidaria","Anthozoa","seawater","25°C","Chronic","8.15-8.48","NR","Howe PL, Reichelt-Brushett AJ, Clark MW. (2014). Effects of Cd, Co, Cu, Ni and Zn on asexual reproduction and early development of the tropical sea anemone Aiptasia pulchella. Ecotoxicology 23, 1593-1606.","755"]
["MEW_nonplant","1444-1",81,0.86170212765957444,"","Aiptasia pulchella","Adult","14 d","EC10","Reproduction",10.50,"Cnidaria","Cnidaria","Anthozoa","Filtered natural seawater",28,"Chronic",8.10,"36 ppt","Trenfield MA, van Dam JW, Harford AJ, Parry D, Streten C, Gibb K, van Dam RA. (2017). Assessing the chronic toxicity of copper and aluminium to the tropical sea anemone Exaiptasia pallida. Ecotoxicology and Environmental Safety 139, 408-415.","1444"]
["MEW_nonplant","1424-2",72,0.76595744680851063,"","Mytilus galloprovincialis","embryo","48 h","EC10","Normal development","5.2 (geomean)","Molluscs","Mollusca","Bivalve","Natural estuarine water, artificial seawater and DI water",16,"Chronic","NR","25-35","Deruytter D, Vandegehuchte MB, Garrevoet J, De Laender F, Vergucht E, Delbeke K, Blust R, De Schamphelaere KAC, Vincze L, Janssen CR. (2015). Salinity and dissolved organic carbon both affect copper toxicity in mussel larvae: Copper speciation or competition cannot explain everything. Environmental Toxicology and Chemistry 34, 1330-1336.","1424"]
["MEW_nonplant","730-2",73,0.77659574468085102,"","Mytilus trossulus","embryo","48 h","EC20","Normal development",5.90,"Molluscs","Mollusca","Bivalve","Filtered natural seawater",20,"Chronic",8,"NR","Nadella SR, Fitzpatrick JL, Franklin N, Bucking C, Smith S, Wood CM. (2009). Toxicity of dissolved Cu, Zn, Ni and Cd to developing embryos of the blue mussell (Mytilus trossolus) and the protective effect of dissolved organic carbon. Comparative Biochemistry and Physiology C Pharmacology and Toxicology 149, 340-348.","730"]
["MEW_nonplant","1391-2",43,0.45744680851063829,"","Acanthopagrus schlegelii schlegelii","Juvenile","28 d","NOEC","Growth",99.70,"Fish ","Chordata","Perciformes","Filtered natural seawater",23,"Chronic",8,"33 ppt","Dang F, Wang WX, Rainbow PS. (2012). Unifying prolonged copper exposure, accumulation, and toxicity from food and water in a marine fish. Environmental Science & Technology 46, 3465-3471.","1391"]
["MEW_nonplant","1014-",81,0.86170212765957444,"","Atherinops affinis","embryo","12 d","NOEC","Normal development",98,"Fish ","Chordata","Actinopterygii","Filtered natural seawater",21,"Chronic","NR","33 ppt","Anderson BS, Middaugh DP, Hunt JW, Turpen SL. (1991). Copper toxicity to sperm, embryos and larvae of topsmelt Atherinops affinis, with notes on induced spawning. Marine Environmental Research 31, 17-35.","1014"]
["MEW_plant","1287-1",61,0.67032967032967028,"","Phaeodactylum tricornutum","Exponentially-growing","72 h","NOEC","Growth","<1.5","Diatom","Bacillariophyta","Bacillariophyceae","Filtered seawater",21,"Chronic",8,"NR","Levy JL, Angel BM, Stauber JL, Poon WL, Simpson SL, Cheng SH, Jolley DF. (2008). Uptake and internalisation of copper by three marine microalgae: Comparison of copper-sensitive and copper-tolerant species. Aquatic Toxicology 89, 82-93.","1287"]
["MEW_plant","1287-4",61,0.67032967032967028,"","Dunaliella teriolecta","Exponentially-growing","72 h","NOEC","Population growth",8,"Green algae","Chlorophyta","Chlorophyceae","Filtered seawater",21,"Chronic",8,"NR","Levy JL, Angel BM, Stauber JL, Poon WL, Simpson SL, Cheng SH, Jolley DF. (2008). Uptake and internalisation of copper by three marine microalgae: Comparison of copper-sensitive and copper-tolerant species. Aquatic Toxicology 89, 82-93.","1287"]
["MEW_plant","1287-4",61,0.67032967032967028,"","Dunaliella teriolecta","Exponentially-growing","72 h","NOEC","Population growth",8,"Green algae","Chlorophyta","Chlorophyceae","Filtered seawater",21,"Chronic",8,"NR","Levy JL, Angel BM, Stauber JL, Poon WL, Simpson SL, Cheng SH, Jolley DF. (2008). Uptake and internalisation of copper by three marine microalgae: Comparison of copper-sensitive and copper-tolerant species. Aquatic Toxicology 89, 82-93.","1287"]
["MEW_plant","1037-1 - 1037-14",74,0.81318681318681318,"","Macrocystis pyrifera","Spores","2 d","NOEC","Reproduction",30,"Brown algae","Ochrophyta","Phaeophyceae","Filtered seawater","13-15","Chronic","7.8-8.3","35-37","Anderson BS, Hunt JW, Turpen SL, Coulon AR, Martin M. (1990). Copper toxicity to microscopic stages of giant-kelp Macrocystis pyrifera - interpopulation comparisons and temporal variability. Marine Ecology Progress Series 68, 147-156.","1037"]
["MEW_nonplant","1397-1",63,0.67021276595744683,"","Bugula neritina","Larvae","20 d","NOEC","Mortality",50,"Bryozoa","Ectoprocta","Gymnolaemata","Filtered natural seawater",20,"Chronic","NR","NR","Piola RF, Johnston EL. (2006). Differential resistance to extended copper exposure in four introduced bryozoans. Marine Ecology Progress Series 311, 103-114.","1397"]
["MEW_plant","1266-1,4",71,0.78021978021978022,"","Fucus vesiculosus","Germlings","14 d","NEC","Growth","11-32","Brown algae","Ochrophyta","Phaeophyceae","Filtered seawater",22,"Chronic",8.10,31,"Brooks SJ, Bolam T, Tolhurst L, Bassett J, La Roche J, Waldock M, Barry J, Thomas KV. (2008). Dissolved organic carbon reduces the toxicity of copper to germlings of the macroalgae, Fucus vesiculosus. Ecotoxicology and Environmental Safety 70, 88-98.","1266"]
["MEW_nonplant","1237-1,11,16",64,0.68085106382978722,"","Hydroides elegans","Larvae","8 d","NOEC","Normal development","<6.2","Annelids","Annelida","Polychaeta","Artificial seawater",24,"Chronic","NR","34 ppt","Xie ZC, Wong NC, Qian PY, Qiu JW. (2005). Responses of polychaete Hydroides elegans life stages to copper stress. Marine Ecology Progress Series 285, 89-96.","1237"]
["MEW_plant","1382-1",68,0.74725274725274726,"","Ulva lactuca","Spores","72 h","EC10","Settlement and growth",55.90,"Green algae","Chlorophyta","Ulvophyceae","Filtered seawater","15°C","Chronic",8.10,32,"Wendt I, Arrhenius A, Backhaus T, Hilvarsson A, Holm K, Langford K, Tunovic T, Blanck H. (2013). Effects of five antifouling biocides on settlement and growth of zoospores from the marine macroalga Ulva lactuca L. Bulletin of Environmental Contamination and Toxicology 91, 426-432.","1382"]
["MEW_plant","1423-1",59,0.64835164835164838,"The highest possible grade for this datum is acceptable.","Tetraselmis chuii","Exponentially-growing","96 h","EC10","Population growth",9,"Green algae","Chlorophyta","Chlorodendrophyceae","Artificial seawater",20,"Chronic","NR",32,"Davarpanah E, Guilhermino L. (2015). Single and combined effects of microplastics and copper on the population growth of the marine microalgae Tetraselmis chuii. Estuarine Coastal and Shelf Science 167, 269-275.","1423"]
["MEW_plant","1393-2",68,0.74725274725274726,"","Cyanobium sp.","Exponentially-growing","72 h","EC10","Population abundance",300,"Green algae","Cyanobacteria","Cyanophyceae","Filtered seawater","25°C","Chronic","NR",33,"Alquezar R, Anastasi A. (2013). The use of the cyanobacteria, Cyanobium sp., as a suitable organism for toxicity testing by flow cytometry. Bulletin of Environmental Contamination and Toxicology 90, 684-690.","1393"]
["MEW_nonplant","1445-1",90,0.95744680851063835,"","Amphiblanus amphitrite","Larvae","96-h","EC10","Normal development",28,"Molluscs","Mollusca","Hexanauplia","Filtered natural seawater",29,"Chronic",8.1999999999999993,32,"van Dam JW, Trenfield MA, Harries SJ, Streten C, Harford AJ, Parry D, van Dam RA. (2016). A novel bioassay using the barnacle Amphibalanus amphitrite to evaluate chronic effects of aluminium, gallium and molybdenum in tropical marine receiving environments. Marine Pollution Bulletin 112, 427-435.","1445"]
["MEW_plant","1446-1,2,3",80,0.87912087912087911,"","Ceratoneis closterium","Exponentially-growing","72 h","EC10","Growth",1,"Microalga","Ochrophyta","Bacillariophyceae","Filtered natural seawater",27,"Chronic","NR",36,"Adams MS, McKnight KS, Gissi F, Stone S, Stauber JL. (2018). Toxicity of copper to marine and freshwater microalgae. CSIRO Technical Report No EP18554, Lucas Heights, NSW, Australia. p 10.","1446"]
["MEW_plant","1446-4",80,0.87912087912087911,"","Isochrysis galbana","Exponentially-growing","72 h","EC10","Growth",2.2000000000000002,"Microalga","Haptophyta","Prymnesiophyceae","Filtered natural seawater",27,"Chronic","NR",36,"Adams MS, McKnight KS, Gissi F, Stone S, Stauber JL. (2018). Toxicity of copper to marine and freshwater microalgae. CSIRO Technical Report No EP18554, Lucas Heights, NSW, Australia. p 10.","1446"]
["MEW_nonplant","1441-1",86,0.91489361702127658,"","Mytilus galloprovincialis","embryo","48 h","EC10","Normal development",14.10,"Molluscs","Mollusca","Bivalve","Oceanic seawater, estuarine seawater, brine",22,"Chronic",7.80,25,"Zitoun R, Clearwater S, Hassler C, Thompson K, Albert A, Sander S. (2018). Copper toxicity to blue mussel embryos (Mytilus galloprovincialis): The effect of natural dissolved organic matter on copper toxicity in estuarine waters. Science of the Total Environment submitted.","1441"]
["MEW_nonplant","1441-5",86,0.91489361702127658,"","Mytilus galloprovincialis","embryo","48 h","EC10","Normal development",7.20,"Molluscs","Mollusca","Bivalve","Oceanic seawater, estuarine seawater, brine",22,"Chronic",7.80,"30 ppt","Zitoun R, Clearwater S, Hassler C, Thompson K, Albert A, Sander S. (2018). Copper toxicity to blue mussel embryos (Mytilus galloprovincialis): The effect of natural dissolved organic matter on copper toxicity in estuarine waters. Science of the Total Environment submitted.","1441"]
["MEW_nonplant","1441-6",86,0.91489361702127658,"","Mytilus galloprovincialis","embryo","48 h","EC10","Normal development",8.8000000000000007,"Molluscs","Mollusca","Bivalve","Oceanic seawater, estuarine seawater, brine",22,"Chronic",7.80,"30 ppt","Zitoun R, Clearwater S, Hassler C, Thompson K, Albert A, Sander S. (2018). Copper toxicity to blue mussel embryos (Mytilus galloprovincialis): The effect of natural dissolved organic matter on copper toxicity in estuarine waters. Science of the Total Environment submitted.","1441"]
["MEW_nonplant","1441-7",86,0.91489361702127658,"","Mytilus galloprovincialis","embryo","48 h","EC10","Normal development",9.1999999999999993,"Molluscs","Mollusca","Bivalve","Oceanic seawater, estuarine seawater, brine",22,"Chronic",7.80,"30 ppt","Zitoun R, Clearwater S, Hassler C, Thompson K, Albert A, Sander S. (2018). Copper toxicity to blue mussel embryos (Mytilus galloprovincialis): The effect of natural dissolved organic matter on copper toxicity in estuarine waters. Science of the Total Environment submitted.","1441"]
["MEW_nonplant","1441-8",86,0.91489361702127658,"","Mytilus galloprovincialis","embryo","48 h","EC10","Normal development",4.0999999999999996,"Molluscs","Mollusca","Bivalve","Oceanic seawater, estuarine seawater, brine",22,"Chronic",7.80,"36 ppt","Zitoun R, Clearwater S, Hassler C, Thompson K, Albert A, Sander S. (2018). Copper toxicity to blue mussel embryos (Mytilus galloprovincialis): The effect of natural dissolved organic matter on copper toxicity in estuarine waters. Science of the Total Environment submitted.","1441"]
["MEW_nonplant","1441-9",86,0.91489361702127658,"","Mytilus galloprovincialis","embryo","48 h","EC10","Normal development",3.20,"Molluscs","Mollusca","Bivalve","Oceanic seawater, estuarine seawater, brine",22,"Chronic",7.80,"36 ppt","Zitoun R, Clearwater S, Hassler C, Thompson K, Albert A, Sander S. (2018). Copper toxicity to blue mussel embryos (Mytilus galloprovincialis): The effect of natural dissolved organic matter on copper toxicity in estuarine waters. Science of the Total Environment submitted.","1441"]
["MEW_nonplant","1404-2",72,0.76595744680851063,"","Epinephelus coioides","Juvenile","25 d","NOEC","Growth",20.30,"Fish ","Chordata","Actinopterygii","Artificial seawater",24,"Chronic",8.10,27.50,"Wang T, Long X, Cheng Y, Liu Z, Yan S. (2014). The potential toxicity of copper nanoparticles and copper sulphate on juvenile Epinephelus coioides. Aquatic Toxicology 152, 96-104.","1404"]
["MEW_nonplant","1404-7",72,0.76595744680851063,"","Epinephelus coioides","Juvenile","25 d","NOEC","Growth",21.90,"Fish ","Chordata","Actinopterygii","Artificial seawater",24,"Chronic",8.10,27.50,"Wang T, Long X, Cheng Y, Liu Z, Yan S. (2014). The potential toxicity of copper nanoparticles and copper sulphate on juvenile Epinephelus coioides. Aquatic Toxicology 152, 96-104.","1404"]
["MEW_nonplant","1429-1",69,0.73404255319148937,"","Diadema savignyi ","embryo","48 h","NOEC","Normal development",10,"Echinoderms","Echinodermata","Echinoidea","Marinewater","25°C","Chronic",8.10,"34 ppt","Rosen G, Rivera-Duarte I, Colvin MA, Dolecal RE, Raymundo LJ, Earley PJ. (2015). Nickel and copper toxicity to embryos of the long-spined sea urchin, Diadema savignyi. Bulletin of Environmental Contamination and Toxicology 95, ","1429"]
["MEW_plant","638-3",62,0.68131868131868101,"The highest possible grade for this datum is acceptable.","Ulva fasciata","Germlings","96 h","NOEC","Reproduction",27.30,"Green algae","Chlorophyta","Ulvophyceae","Filtered seawater",20,"Chronic","NR","NR","Hooten RL, Carr RS. (1998). Development and application of a marine sediment pore-water toxicity test using Ulva fasciata zoospores. Environmental Toxicology and Chemistry 17, 932-940.","638"]

{"sheet":"Sheet1","index":4,"n_rows":70,"n_cols":29,"rows_kept":70,"cut":false,"hidden":true,"merged":[]}
[]
[{"$f":"#REF!","v":{"$error":"#REF!"}},{"$f":"#REF!","v":{"$error":"#REF!"}},{"$f":"#REF!","v":{"$error":"#REF!"}},{"$f":"#REF!","v":{"$error":"#REF!"}},{"$f":"#REF!","v":{"$error":"#REF!"}},{"$f":"#REF!","v":{"$error":"#REF!"}},{"$f":"#REF!","v":{"$error":"#REF!"}},{"$f":"#REF!","v":{"$error":"#REF!"}},{"$f":"#REF!","v":{"$error":"#REF!"}},{"$f":"#REF!","v":{"$error":"#REF!"}},{"$f":"#REF!","v":{"$error":"#REF!"}},{"$f":"#REF!","v":{"$error":"#REF!"}},{"$f":"#REF!","v":{"$error":"#REF!"}},{"$f":"#REF!","v":{"$error":"#REF!"}},{"$f":"#REF!","v":{"$error":"#REF!"}},{"$f":"#REF!","v":{"$error":"#REF!"}},{"$f":"#REF!","v":{"$error":"#REF!"}},{"$f":"#REF!","v":{"$error":"#REF!"}},{"$f":"#REF!","v":{"$error":"#REF!"}},{"$f":"#REF!","v":{"$error":"#REF!"}},{"$f":"#REF!","v":{"$error":"#REF!"}},{"$f":"#REF!","v":{"$error":"#REF!"}},{"$f":"#REF!","v":{"$error":"#REF!"}},{"$f":"#REF!","v":{"$error":"#REF!"}},{"$f":"#REF!","v":{"$error":"#REF!"}},{"$f":"#REF!","v":{"$error":"#REF!"}}]
[{"$f":"#REF!","v":{"$error":"#REF!"}},{"$f":"#REF!","v":{"$error":"#REF!"}},{"$f":"#REF!","v":{"$error":"#REF!"}},{"$f":"#REF!","v":{"$error":"#REF!"}}]
[{"$f":"#REF!","v":{"$error":"#REF!"}},{"$f":"#REF!","v":{"$error":"#REF!"}},{"$f":"#REF!","v":{"$error":"#REF!"}},{"$f":"#REF!","v":{"$error":"#REF!"}},{"$f":"#REF!","v":{"$error":"#REF!"}},{"$f":"#REF!","v":{"$error":"#REF!"}},{"$f":"#REF!","v":{"$error":"#REF!"}},{"$f":"#REF!","v":{"$error":"#REF!"}},{"$f":"#REF!","v":{"$error":"#REF!"}},{"$f":"#REF!","v":{"$error":"#REF!"}},{"$f":"#REF!","v":{"$error":"#REF!"}},{"$f":"#REF!","v":{"$error":"#REF!"}},{"$f":"#REF!","v":{"$error":"#REF!"}},{"$f":"#REF!","v":{"$error":"#REF!"}},{"$f":"#REF!","v":{"$error":"#REF!"}},{"$f":"#REF!","v":{"$error":"#REF!"}},{"$f":"#REF!","v":{"$error":"#REF!"}},{"$f":"#REF!","v":{"$error":"#REF!"}},{"$f":"#REF!","v":{"$error":"#REF!"}},{"$f":"#REF!","v":{"$error":"#REF!"}},{"$f":"#REF!","v":{"$error":"#REF!"}},{"$f":"#REF!","v":{"$error":"#REF!"}},{"$f":"#REF!","v":{"$error":"#REF!"}},{"$f":"#REF!","v":{"$error":"#REF!"}},{"$f":"#REF!","v":{"$error":"#REF!"}},{"$f":"#REF!","v":{"$error":"#REF!"}}]
["Answers",{"$f":"IF(#REF!=0,\"\",#REF!)","v":{"$error":"#REF!"}},{"$f":"IF(#REF!=0,\"\",#REF!)","v":{"$error":"#REF!"}},{"$f":"IF(#REF!=0,\"\",#REF!)","v":{"$error":"#REF!"}},{"$f":"IF(#REF!=0,\"\",#REF!)","v":{"$error":"#REF!"}},{"$f":"IF(#REF!=0,\"\",#REF!)","v":{"$error":"#REF!"}},{"$f":"IF(#REF!=0,\"\",#REF!)","v":{"$error":"#REF!"}},{"$f":"IF(#REF!=0,\"\",#REF!)","v":{"$error":"#REF!"}},{"$f":"IF(#REF!=0,\"\",#REF!)","v":{"$error":"#REF!"}},{"$f":"IF(#REF!=0,\"\",#REF!)","v":{"$error":"#REF!"}},{"$f":"IF(#REF!=0,\"\",#REF!)","v":{"$error":"#REF!"}},{"$f":"IF(#REF!=0,\"\",#REF!)","v":{"$error":"#REF!"}},{"$f":"IF(#REF!=0,\"\",#REF!)","v":{"$error":"#REF!"}},{"$f":"IF(#REF!=0,\"\",#REF!)","v":{"$error":"#REF!"}},{"$f":"IF(#REF!=0,\"\",#REF!)","v":{"$error":"#REF!"}},{"$f":"IF(#REF!=0,\"\",#REF!)","v":{"$error":"#REF!"}},{"$f":"IF(#REF!=0,\"\",#REF!)","v":{"$error":"#REF!"}},{"$f":"IF(#REF!=0,\"\",#REF!)","v":{"$error":"#REF!"}},{"$f":"IF(#REF!=0,\"\",#REF!)","v":{"$error":"#REF!"}},{"$f":"IF(#REF!=0,\"\",#REF!)","v":{"$error":"#REF!"}},{"$f":"IF(#REF!=0,\"\",#REF!)","v":{"$error":"#REF!"}},{"$f":"IF(#REF!=0,\"\",#REF!)","v":{"$error":"#REF!"}},{"$f":"IF(#REF!=0,\"\",#REF!)","v":{"$error":"#REF!"}},{"$f":"IF(#REF!=0,\"\",#REF!)","v":{"$error":"#REF!"}}]
[{"$f":"#REF!","v":{"$error":"#REF!"}},{"$f":"#REF!","v":{"$error":"#REF!"}},{"$f":"#REF!","v":{"$error":"#REF!"}},{"$f":"#REF!","v":{"$error":"#REF!"}},{"$f":"#REF!","v":{"$error":"#REF!"}},{"$f":"#REF!","v":{"$error":"#REF!"}},{"$f":"#REF!","v":{"$error":"#REF!"}},{"$f":"#REF!","v":{"$error":"#REF!"}}]
[{"$f":"#REF!","v":{"$error":"#REF!"}},{"$f":"#REF!","v":{"$error":"#REF!"}},{"$f":"#REF!","v":{"$error":"#REF!"}},{"$f":"#REF!","v":{"$error":"#REF!"}},{"$f":"#REF!","v":{"$error":"#REF!"}},{"$f":"IF(#REF!=0,\"\",#REF!)","v":{"$error":"#REF!"}},{"$f":"IF(#REF!=0,\"\",#REF!)","v":{"$error":"#REF!"}},{"$f":"IF(#REF!=0,\"\",#REF!)","v":{"$error":"#REF!"}}]
[]
[]
[]
[{"$f":"#REF!","v":{"$error":"#REF!"}},{"$f":"#REF!","v":{"$error":"#REF!"}},{"$f":"#REF!","v":{"$error":"#REF!"}},{"$f":"#REF!","v":{"$error":"#REF!"}},{"$f":"#REF!","v":{"$error":"#REF!"}},{"$f":"#REF!","v":{"$error":"#REF!"}},{"$f":"#REF!","v":{"$error":"#REF!"}},{"$f":"#REF!","v":{"$error":"#REF!"}},{"$f":"#REF!","v":{"$error":"#REF!"}},{"$f":"#REF!","v":{"$error":"#REF!"}},{"$f":"#REF!","v":{"$error":"#REF!"}},{"$f":"#REF!","v":{"$error":"#REF!"}},{"$f":"#REF!","v":{"$error":"#REF!"}},{"$f":"#REF!","v":{"$error":"#REF!"}},{"$f":"#REF!","v":{"$error":"#REF!"}},{"$f":"#REF!","v":{"$error":"#REF!"}},{"$f":"#REF!","v":{"$error":"#REF!"}},{"$f":"#REF!","v":{"$error":"#REF!"}},{"$f":"#REF!","v":{"$error":"#REF!"}},{"$f":"#REF!","v":{"$error":"#REF!"}},{"$f":"#REF!","v":{"$error":"#REF!"}},{"$f":"#REF!","v":{"$error":"#REF!"}},{"$f":"#REF!","v":{"$error":"#REF!"}},{"$f":"#REF!","v":{"$error":"#REF!"}},{"$f":"#REF!","v":{"$error":"#REF!"}},{"$f":"#REF!","v":{"$error":"#REF!"}},{"$f":"#REF!","v":{"$error":"#REF!"}}]
[{"$f":"#REF!","v":{"$error":"#REF!"}},{"$f":"#REF!","v":{"$error":"#REF!"}},{"$f":"#REF!","v":{"$error":"#REF!"}},{"$f":"#REF!","v":{"$error":"#REF!"}}]
[{"$f":"#REF!","v":{"$error":"#REF!"}},{"$f":"#REF!","v":{"$error":"#REF!"}},{"$f":"#REF!","v":{"$error":"#REF!"}},{"$f":"#REF!","v":{"$error":"#REF!"}},{"$f":"#REF!","v":{"$error":"#REF!"}},{"$f":"#REF!","v":{"$error":"#REF!"}},{"$f":"#REF!","v":{"$error":"#REF!"}},{"$f":"#REF!","v":{"$error":"#REF!"}},{"$f":"#REF!","v":{"$error":"#REF!"}},{"$f":"#REF!","v":{"$error":"#REF!"}},{"$f":"#REF!","v":{"$error":"#REF!"}},{"$f":"#REF!","v":{"$error":"#REF!"}},{"$f":"#REF!","v":{"$error":"#REF!"}},{"$f":"#REF!","v":{"$error":"#REF!"}},{"$f":"#REF!","v":{"$error":"#REF!"}},{"$f":"#REF!","v":{"$error":"#REF!"}},{"$f":"#REF!","v":{"$error":"#REF!"}},{"$f":"#REF!","v":{"$error":"#REF!"}},{"$f":"#REF!","v":{"$error":"#REF!"}},{"$f":"#REF!","v":{"$error":"#REF!"}},{"$f":"#REF!","v":{"$error":"#REF!"}},{"$f":"#REF!","v":{"$error":"#REF!"}},{"$f":"#REF!","v":{"$error":"#REF!"}},{"$f":"#REF!","v":{"$error":"#REF!"}},{"$f":"#REF!","v":{"$error":"#REF!"}},{"$f":"#REF!","v":{"$error":"#REF!"}},{"$f":"#REF!","v":{"$error":"#REF!"}}]
[{"$f":"#REF!","v":{"$error":"#REF!"}},{"$f":"IF(#REF!=0,\"\",#REF!)","v":{"$error":"#REF!"}},{"$f":"IF(#REF!=0,\"\",#REF!)","v":{"$error":"#REF!"}},{"$f":"IF(#REF!=0,\"\",#REF!)","v":{"$error":"#REF!"}},{"$f":"IF(#REF!=0,\"\",#REF!)","v":{"$error":"#REF!"}},null,{"$f":"IF(#REF!=0,\"\",#REF!)","v":{"$error":"#REF!"}},{"$f":"IF(#REF!=0,\"\",#REF!)","v":{"$error":"#REF!"}},{"$f":"IF(#REF!=0,\"\",#REF!)","v":{"$error":"#REF!"}},{"$f":"IF(#REF!=0,\"\",#REF!)","v":{"$error":"#REF!"}},{"$f":"IF(#REF!=0,\"\",#REF!)","v":{"$error":"#REF!"}},{"$f":"IF(#REF!=0,\"\",#REF!)","v":{"$error":"#REF!"}},{"$f":"IF(#REF!=0,\"\",#REF!)","v":{"$error":"#REF!"}},{"$f":"IF(#REF!=0,\"\",#REF!)","v":{"$error":"#REF!"}},{"$f":"IF(#REF!=0,\"\",#REF!)","v":{"$error":"#REF!"}},{"$f":"IF(#REF!=0,\"\",#REF!)","v":{"$error":"#REF!"}},{"$f":"IF(#REF!=0,\"\",#REF!)","v":{"$error":"#REF!"}},{"$f":"IF(#REF!=0,\"\",#REF!)","v":{"$error":"#REF!"}},{"$f":"IF(#REF!=0,\"\",#REF!)","v":{"$error":"#REF!"}},{"$f":"IF(#REF!=0,\"\",#REF!)","v":{"$error":"#REF!"}},{"$f":"IF(#REF!=0,\"\",#REF!)","v":{"$error":"#REF!"}},{"$f":"IF(#REF!=0,\"\",#REF!)","v":{"$error":"#REF!"}},{"$f":"IF(#REF!=0,\"\",#REF!)","v":{"$error":"#REF!"}},{"$f":"IF(#REF!=0,\"\",#REF!)","v":{"$error":"#REF!"}},{"$f":"IF(#REF!=0,\"\",#REF!)","v":{"$error":"#REF!"}}]
[{"$f":"#REF!","v":{"$error":"#REF!"}},{"$f":"#REF!","v":{"$error":"#REF!"}},{"$f":"#REF!","v":{"$error":"#REF!"}},{"$f":"#REF!","v":{"$error":"#REF!"}},{"$f":"#REF!","v":{"$error":"#REF!"}},{"$f":"#REF!","v":{"$error":"#REF!"}},{"$f":"#REF!","v":{"$error":"#REF!"}},{"$f":"#REF!","v":{"$error":"#REF!"}}]
[{"$f":"#REF!","v":{"$error":"#REF!"}},{"$f":"#REF!","v":{"$error":"#REF!"}},{"$f":"#REF!","v":{"$error":"#REF!"}},{"$f":"#REF!","v":{"$error":"#REF!"}},{"$f":"#REF!","v":{"$error":"#REF!"}},{"$f":"IF(#REF!=0,\"\",#REF!)","v":{"$error":"#REF!"}},{"$f":"IF(#REF!=0,\"\",#REF!)","v":{"$error":"#REF!"}},{"$f":"IF(#REF!=0,\"\",#REF!)","v":{"$error":"#REF!"}}]
[]
[]
[]
[{"$f":"#REF!","v":{"$error":"#REF!"}},{"$f":"#REF!","v":{"$error":"#REF!"}},{"$f":"#REF!","v":{"$error":"#REF!"}},{"$f":"#REF!","v":{"$error":"#REF!"}},{"$f":"#REF!","v":{"$error":"#REF!"}},{"$f":"#REF!","v":{"$error":"#REF!"}},{"$f":"#REF!","v":{"$error":"#REF!"}},{"$f":"#REF!","v":{"$error":"#REF!"}},{"$f":"#REF!","v":{"$error":"#REF!"}},{"$f":"#REF!","v":{"$error":"#REF!"}},{"$f":"#REF!","v":{"$error":"#REF!"}},{"$f":"#REF!","v":{"$error":"#REF!"}},{"$f":"#REF!","v":{"$error":"#REF!"}},{"$f":"#REF!","v":{"$error":"#REF!"}},{"$f":"#REF!","v":{"$error":"#REF!"}},{"$f":"#REF!","v":{"$error":"#REF!"}},{"$f":"#REF!","v":{"$error":"#REF!"}},{"$f":"#REF!","v":{"$error":"#REF!"}},{"$f":"#REF!","v":{"$error":"#REF!"}},{"$f":"#REF!","v":{"$error":"#REF!"}},{"$f":"#REF!","v":{"$error":"#REF!"}},{"$f":"#REF!","v":{"$error":"#REF!"}},{"$f":"#REF!","v":{"$error":"#REF!"}},{"$f":"#REF!","v":{"$error":"#REF!"}},{"$f":"#REF!","v":{"$error":"#REF!"}},{"$f":"#REF!","v":{"$error":"#REF!"}}]
[{"$f":"#REF!","v":{"$error":"#REF!"}},{"$f":"#REF!","v":{"$error":"#REF!"}},{"$f":"#REF!","v":{"$error":"#REF!"}},{"$f":"#REF!","v":{"$error":"#REF!"}}]
[{"$f":"#REF!","v":{"$error":"#REF!"}},{"$f":"#REF!","v":{"$error":"#REF!"}},{"$f":"#REF!","v":{"$error":"#REF!"}},{"$f":"#REF!","v":{"$error":"#REF!"}},{"$f":"#REF!","v":{"$error":"#REF!"}},{"$f":"#REF!","v":{"$error":"#REF!"}},{"$f":"#REF!","v":{"$error":"#REF!"}},{"$f":"#REF!","v":{"$error":"#REF!"}},{"$f":"#REF!","v":{"$error":"#REF!"}},{"$f":"#REF!","v":{"$error":"#REF!"}},{"$f":"#REF!","v":{"$error":"#REF!"}},{"$f":"#REF!","v":{"$error":"#REF!"}},{"$f":"#REF!","v":{"$error":"#REF!"}},{"$f":"#REF!","v":{"$error":"#REF!"}},{"$f":"#REF!","v":{"$error":"#REF!"}},{"$f":"#REF!","v":{"$error":"#REF!"}},{"$f":"#REF!","v":{"$error":"#REF!"}},{"$f":"#REF!","v":{"$error":"#REF!"}},{"$f":"#REF!","v":{"$error":"#REF!"}},{"$f":"#REF!","v":{"$error":"#REF!"}},{"$f":"#REF!","v":{"$error":"#REF!"}},{"$f":"#REF!","v":{"$error":"#REF!"}},{"$f":"#REF!","v":{"$error":"#REF!"}},{"$f":"#REF!","v":{"$error":"#REF!"}},{"$f":"#REF!","v":{"$error":"#REF!"}},{"$f":"#REF!","v":{"$error":"#REF!"}}]
[{"$f":"#REF!","v":{"$error":"#REF!"}},{"$f":"IF(#REF!=0,\"\",#REF!)","v":{"$error":"#REF!"}},{"$f":"IF(#REF!=0,\"\",#REF!)","v":{"$error":"#REF!"}},{"$f":"IF(#REF!=0,\"\",#REF!)","v":{"$error":"#REF!"}},{"$f":"IF(#REF!=0,\"\",#REF!)","v":{"$error":"#REF!"}},{"$f":"IF(#REF!=0,\"\",#REF!)","v":{"$error":"#REF!"}},{"$f":"IF(#REF!=0,\"\",#REF!)","v":{"$error":"#REF!"}},{"$f":"IF(#REF!=0,\"\",#REF!)","v":{"$error":"#REF!"}},{"$f":"IF(#REF!=0,\"\",#REF!)","v":{"$error":"#REF!"}},{"$f":"IF(#REF!=0,\"\",#REF!)","v":{"$error":"#REF!"}},{"$f":"IF(#REF!=0,\"\",#REF!)","v":{"$error":"#REF!"}},{"$f":"IF(#REF!=0,\"\",#REF!)","v":{"$error":"#REF!"}},{"$f":"IF(#REF!=0,\"\",#REF!)","v":{"$error":"#REF!"}},{"$f":"IF(#REF!=0,\"\",#REF!)","v":{"$error":"#REF!"}},{"$f":"IF(#REF!=0,\"\",#REF!)","v":{"$error":"#REF!"}},{"$f":"IF(#REF!=0,\"\",#REF!)","v":{"$error":"#REF!"}},{"$f":"IF(#REF!=0,\"\",#REF!)","v":{"$error":"#REF!"}},{"$f":"IF(#REF!=0,\"\",#REF!)","v":{"$error":"#REF!"}},{"$f":"IF(#REF!=0,\"\",#REF!)","v":{"$error":"#REF!"}},{"$f":"IF(#REF!=0,\"\",#REF!)","v":{"$error":"#REF!"}},{"$f":"IF(#REF!=0,\"\",#REF!)","v":{"$error":"#REF!"}},{"$f":"IF(#REF!=0,\"\",#REF!)","v":{"$error":"#REF!"}},{"$f":"IF(#REF!=0,\"\",#REF!)","v":{"$error":"#REF!"}},{"$f":"IF(#REF!=0,\"\",#REF!)","v":{"$error":"#REF!"}}]
[{"$f":"#REF!","v":{"$error":"#REF!"}},{"$f":"#REF!","v":{"$error":"#REF!"}},{"$f":"#REF!","v":{"$error":"#REF!"}},{"$f":"#REF!","v":{"$error":"#REF!"}},{"$f":"#REF!","v":{"$error":"#REF!"}},{"$f":"#REF!","v":{"$error":"#REF!"}},{"$f":"#REF!","v":{"$error":"#REF!"}},{"$f":"#REF!","v":{"$error":"#REF!"}}]
[{"$f":"#REF!","v":{"$error":"#REF!"}},{"$f":"#REF!","v":{"$error":"#REF!"}},{"$f":"#REF!","v":{"$error":"#REF!"}},{"$f":"#REF!","v":{"$error":"#REF!"}},{"$f":"#REF!","v":{"$error":"#REF!"}},{"$f":"IF(#REF!=0,\"\",#REF!)","v":{"$error":"#REF!"}},{"$f":"IF(#REF!=0,\"\",#REF!)","v":{"$error":"#REF!"}},{"$f":"IF(#REF!=0,\"\",#REF!)","v":{"$error":"#REF!"}}]
[]
[]
[]
[{"$f":"#REF!","v":{"$error":"#REF!"}},{"$f":"#REF!","v":{"$error":"#REF!"}},{"$f":"#REF!","v":{"$error":"#REF!"}},{"$f":"#REF!","v":{"$error":"#REF!"}},{"$f":"#REF!","v":{"$error":"#REF!"}},{"$f":"#REF!","v":{"$error":"#REF!"}},{"$f":"#REF!","v":{"$error":"#REF!"}},{"$f":"#REF!","v":{"$error":"#REF!"}},{"$f":"#REF!","v":{"$error":"#REF!"}},{"$f":"#REF!","v":{"$error":"#REF!"}},{"$f":"#REF!","v":{"$error":"#REF!"}},{"$f":"#REF!","v":{"$error":"#REF!"}},{"$f":"#REF!","v":{"$error":"#REF!"}},{"$f":"#REF!","v":{"$error":"#REF!"}},{"$f":"#REF!","v":{"$error":"#REF!"}},{"$f":"#REF!","v":{"$error":"#REF!"}},{"$f":"#REF!","v":{"$error":"#REF!"}},{"$f":"#REF!","v":{"$error":"#REF!"}},{"$f":"#REF!","v":{"$error":"#REF!"}},{"$f":"#REF!","v":{"$error":"#REF!"}},{"$f":"#REF!","v":{"$error":"#REF!"}},{"$f":"#REF!","v":{"$error":"#REF!"}},{"$f":"#REF!","v":{"$error":"#REF!"}},{"$f":"#REF!","v":{"$error":"#REF!"}},{"$f":"#REF!","v":{"$error":"#REF!"}},{"$f":"#REF!","v":{"$error":"#REF!"}},{"$f":"#REF!","v":{"$error":"#REF!"}},{"$f":"#REF!","v":{"$error":"#REF!"}},{"$f":"#REF!","v":{"$error":"#REF!"}}]
[{"$f":"#REF!","v":{"$error":"#REF!"}},{"$f":"#REF!","v":{"$error":"#REF!"}},{"$f":"#REF!","v":{"$error":"#REF!"}},{"$f":"#REF!","v":{"$error":"#REF!"}}]
[{"$f":"#REF!","v":{"$error":"#REF!"}},{"$f":"#REF!","v":{"$error":"#REF!"}},{"$f":"#REF!","v":{"$error":"#REF!"}},{"$f":"#REF!","v":{"$error":"#REF!"}},{"$f":"#REF!","v":{"$error":"#REF!"}},{"$f":"#REF!","v":{"$error":"#REF!"}},{"$f":"#REF!","v":{"$error":"#REF!"}},{"$f":"#REF!","v":{"$error":"#REF!"}},{"$f":"#REF!","v":{"$error":"#REF!"}},{"$f":"#REF!","v":{"$error":"#REF!"}},{"$f":"#REF!","v":{"$error":"#REF!"}},{"$f":"#REF!","v":{"$error":"#REF!"}},{"$f":"#REF!","v":{"$error":"#REF!"}},{"$f":"#REF!","v":{"$error":"#REF!"}},{"$f":"#REF!","v":{"$error":"#REF!"}},{"$f":"#REF!","v":{"$error":"#REF!"}},{"$f":"#REF!","v":{"$error":"#REF!"}},{"$f":"#REF!","v":{"$error":"#REF!"}},{"$f":"#REF!","v":{"$error":"#REF!"}},{"$f":"#REF!","v":{"$error":"#REF!"}},{"$f":"#REF!","v":{"$error":"#REF!"}},{"$f":"#REF!","v":{"$error":"#REF!"}},{"$f":"#REF!","v":{"$error":"#REF!"}},{"$f":"#REF!","v":{"$error":"#REF!"}},{"$f":"#REF!","v":{"$error":"#REF!"}},{"$f":"#REF!","v":{"$error":"#REF!"}},{"$f":"#REF!","v":{"$error":"#REF!"}},{"$f":"#REF!","v":{"$error":"#REF!"}},{"$f":"#REF!","v":{"$error":"#REF!"}}]
[{"$f":"#REF!","v":{"$error":"#REF!"}},{"$f":"IF(#REF!=\"\",\"\",#REF!)","v":{"$error":"#REF!"}},{"$f":"IF(#REF!=\"\",\"\",#REF!)","v":{"$error":"#REF!"}},{"$f":"IF(#REF!=\"\",\"\",#REF!)","v":{"$error":"#REF!"}},{"$f":"IF(#REF!=\"\",\"\",#REF!)","v":{"$error":"#REF!"}},{"$f":"IF(#REF!=\"\",\"\",#REF!)","v":{"$error":"#REF!"}},{"$f":"IF(#REF!=\"\",\"\",#REF!)","v":{"$error":"#REF!"}},{"$f":"IF(#REF!=\"\",\"\",#REF!)","v":{"$error":"#REF!"}},{"$f":"IF(#REF!=\"\",\"\",#REF!)","v":{"$error":"#REF!"}},{"$f":"IF(#REF!=\"\",\"\",#REF!)","v":{"$error":"#REF!"}},{"$f":"IF(#REF!=\"\",\"\",#REF!)","v":{"$error":"#REF!"}},{"$f":"IF(#REF!=\"\",\"\",#REF!)","v":{"$error":"#REF!"}},{"$f":"IF(#REF!=\"\",\"\",#REF!)","v":{"$error":"#REF!"}},{"$f":"IF(#REF!=\"\",\"\",#REF!)","v":{"$error":"#REF!"}},{"$f":"IF(#REF!=\"\",\"\",#REF!)","v":{"$error":"#REF!"}},{"$f":"IF(#REF!=\"\",\"\",#REF!)","v":{"$error":"#REF!"}},{"$f":"IF(#REF!=\"\",\"\",#REF!)","v":{"$error":"#REF!"}},{"$f":"IF(#REF!=\"\",\"\",#REF!)","v":{"$error":"#REF!"}},{"$f":"IF(#REF!=\"\",\"\",#REF!)","v":{"$error":"#REF!"}},{"$f":"IF(#REF!=\"\",\"\",#REF!)","v":{"$error":"#REF!"}},{"$f":"IF(#REF!=\"\",\"\",#REF!)","v":{"$error":"#REF!"}},{"$f":"IF(#REF!=\"\",\"\",#REF!)","v":{"$error":"#REF!"}},{"$f":"IF(#REF!=\"\",\"\",#REF!)","v":{"$error":"#REF!"}},{"$f":"IF(#REF!=\"\",\"\",#REF!)","v":{"$error":"#REF!"}},{"$f":"IF(#REF!=\"\",\"\",#REF!)","v":{"$error":"#REF!"}},{"$f":"IF(#REF!=\"\",\"\",#REF!)","v":{"$error":"#REF!"}},{"$f":"IF(#REF!=\"\",\"\",#REF!)","v":{"$error":"#REF!"}}]
[{"$f":"#REF!","v":{"$error":"#REF!"}},{"$f":"#REF!","v":{"$error":"#REF!"}},{"$f":"#REF!","v":{"$error":"#REF!"}},{"$f":"#REF!","v":{"$error":"#REF!"}},{"$f":"#REF!","v":{"$error":"#REF!"}},{"$f":"#REF!","v":{"$error":"#REF!"}},{"$f":"#REF!","v":{"$error":"#REF!"}},{"$f":"#REF!","v":{"$error":"#REF!"}}]
[{"$f":"#REF!","v":{"$error":"#REF!"}},{"$f":"#REF!","v":{"$error":"#REF!"}},{"$f":"#REF!","v":{"$error":"#REF!"}},{"$f":"#REF!","v":{"$error":"#REF!"}},{"$f":"#REF!","v":{"$error":"#REF!"}},{"$f":"IF(#REF!=\"\",\"\",#REF!)","v":{"$error":"#REF!"}},{"$f":"IF(#REF!=\"\",\"\",#REF!)","v":{"$error":"#REF!"}},{"$f":"IF(#REF!=\"\",\"\",#REF!)","v":{"$error":"#REF!"}}]
[{"$f":"#REF!","v":{"$error":"#REF!"}},{"$f":"#REF!","v":{"$error":"#REF!"}},{"$f":"#REF!","v":{"$error":"#REF!"}},{"$f":"#REF!","v":{"$error":"#REF!"}},{"$f":"#REF!","v":{"$error":"#REF!"}},{"$f":"#REF!","v":{"$error":"#REF!"}},{"$f":"#REF!","v":{"$error":"#REF!"}},{"$f":"#REF!","v":{"$error":"#REF!"}},{"$f":"#REF!","v":{"$error":"#REF!"}},{"$f":"#REF!","v":{"$error":"#REF!"}},{"$f":"#REF!","v":{"$error":"#REF!"}},{"$f":"#REF!","v":{"$error":"#REF!"}},{"$f":"#REF!","v":{"$error":"#REF!"}},{"$f":"#REF!","v":{"$error":"#REF!"}},{"$f":"#REF!","v":{"$error":"#REF!"}},{"$f":"#REF!","v":{"$error":"#REF!"}},{"$f":"#REF!","v":{"$error":"#REF!"}},{"$f":"#REF!","v":{"$error":"#REF!"}},{"$f":"#REF!","v":{"$error":"#REF!"}},{"$f":"#REF!","v":{"$error":"#REF!"}},{"$f":"#REF!","v":{"$error":"#REF!"}}]
[{"$f":"#REF!","v":{"$error":"#REF!"}},{"$f":"#REF!","v":{"$error":"#REF!"}},{"$f":"#REF!","v":{"$error":"#REF!"}},{"$f":"#REF!","v":{"$error":"#REF!"}}]
[{"$f":"#REF!","v":{"$error":"#REF!"}},{"$f":"#REF!","v":{"$error":"#REF!"}},{"$f":"#REF!","v":{"$error":"#REF!"}},{"$f":"#REF!","v":{"$error":"#REF!"}},{"$f":"#REF!","v":{"$error":"#REF!"}},{"$f":"#REF!","v":{"$error":"#REF!"}},{"$f":"#REF!","v":{"$error":"#REF!"}},{"$f":"#REF!","v":{"$error":"#REF!"}},{"$f":"#REF!","v":{"$error":"#REF!"}},{"$f":"#REF!","v":{"$error":"#REF!"}},{"$f":"#REF!","v":{"$error":"#REF!"}},{"$f":"#REF!","v":{"$error":"#REF!"}},{"$f":"#REF!","v":{"$error":"#REF!"}},{"$f":"#REF!","v":{"$error":"#REF!"}},{"$f":"#REF!","v":{"$error":"#REF!"}},{"$f":"#REF!","v":{"$error":"#REF!"}},{"$f":"#REF!","v":{"$error":"#REF!"}},{"$f":"#REF!","v":{"$error":"#REF!"}},{"$f":"#REF!","v":{"$error":"#REF!"}},{"$f":"#REF!","v":{"$error":"#REF!"}},{"$f":"#REF!","v":{"$error":"#REF!"}},{"$f":"#REF!","v":{"$error":"#REF!"}}]
[{"$f":"#REF!","v":{"$error":"#REF!"}},{"$f":"IF(#REF!=\"\",\"\",#REF!)","v":{"$error":"#REF!"}},{"$f":"IF(#REF!=\"\",\"\",#REF!)","v":{"$error":"#REF!"}},{"$f":"IF(#REF!=\"\",\"\",#REF!)","v":{"$error":"#REF!"}},{"$f":"IF(#REF!=\"\",\"\",#REF!)","v":{"$error":"#REF!"}},{"$f":"IF(#REF!=\"\",\"\",#REF!)","v":{"$error":"#REF!"}},{"$f":"IF(#REF!=\"\",\"\",#REF!)","v":{"$error":"#REF!"}},{"$f":"IF(#REF!=\"\",\"\",#REF!)","v":{"$error":"#REF!"}},{"$f":"IF(#REF!=\"\",\"\",#REF!)","v":{"$error":"#REF!"}},{"$f":"IF(#REF!=\"\",\"\",#REF!)","v":{"$error":"#REF!"}},{"$f":"IF(#REF!=\"\",\"\",#REF!)","v":{"$error":"#REF!"}},{"$f":"IF(#REF!=\"\",\"\",#REF!)","v":{"$error":"#REF!"}},{"$f":"IF(#REF!=\"\",\"\",#REF!)","v":{"$error":"#REF!"}},{"$f":"IF(#REF!=\"\",\"\",#REF!)","v":{"$error":"#REF!"}},{"$f":"IF(#REF!=\"\",\"\",#REF!)","v":{"$error":"#REF!"}},{"$f":"IF(#REF!=\"\",\"\",#REF!)","v":{"$error":"#REF!"}},{"$f":"IF(#REF!=\"\",\"\",#REF!)","v":{"$error":"#REF!"}},{"$f":"IF(#REF!=\"\",\"\",#REF!)","v":{"$error":"#REF!"}},{"$f":"IF(#REF!=\"\",\"\",#REF!)","v":{"$error":"#REF!"}}]
[{"$f":"#REF!","v":{"$error":"#REF!"}},{"$f":"#REF!","v":{"$error":"#REF!"}},{"$f":"#REF!","v":{"$error":"#REF!"}},{"$f":"#REF!","v":{"$error":"#REF!"}},{"$f":"#REF!","v":{"$error":"#REF!"}},{"$f":"#REF!","v":{"$error":"#REF!"}},{"$f":"#REF!","v":{"$error":"#REF!"}},{"$f":"#REF!","v":{"$error":"#REF!"}},{"$f":"#REF!","v":{"$error":"#REF!"}},{"$f":"#REF!","v":{"$error":"#REF!"}},{"$f":"#REF!","v":{"$error":"#REF!"}},{"$f":"#REF!","v":{"$error":"#REF!"}},{"$f":"#REF!","v":{"$error":"#REF!"}},{"$f":"#REF!","v":{"$error":"#REF!"}},{"$f":"#REF!","v":{"$error":"#REF!"}},{"$f":"#REF!","v":{"$error":"#REF!"}}]
[{"$f":"#REF!","v":{"$error":"#REF!"}},{"$f":"#REF!","v":{"$error":"#REF!"}},{"$f":"#REF!","v":{"$error":"#REF!"}},{"$f":"#REF!","v":{"$error":"#REF!"}},{"$f":"#REF!","v":{"$error":"#REF!"}},{"$f":"IF(#REF!=\"\",\"\",#REF!)","v":{"$error":"#REF!"}},{"$f":"#REF!","v":{"$error":"#REF!"}},{"$f":"#REF!","v":{"$error":"#REF!"}},{"$f":"#REF!","v":{"$error":"#REF!"}},{"$f":"#REF!","v":{"$error":"#REF!"}},{"$f":"#REF!","v":{"$error":"#REF!"}},{"$f":"#REF!","v":{"$error":"#REF!"}},{"$f":"#REF!","v":{"$error":"#REF!"}},{"$f":"#REF!","v":{"$error":"#REF!"}},{"$f":"IF(#REF!=\"\",\"\",#REF!)","v":{"$error":"#REF!"}},{"$f":"IF(#REF!=\"\",\"\",#REF!)","v":{"$error":"#REF!"}}]
[{"$f":"#REF!","v":{"$error":"#REF!"}},{"$f":"#REF!","v":{"$error":"#REF!"}},{"$f":"#REF!","v":{"$error":"#REF!"}},{"$f":"#REF!","v":{"$error":"#REF!"}},{"$f":"#REF!","v":{"$error":"#REF!"}},{"$f":"#REF!","v":{"$error":"#REF!"}},{"$f":"#REF!","v":{"$error":"#REF!"}},{"$f":"#REF!","v":{"$error":"#REF!"}},{"$f":"#REF!","v":{"$error":"#REF!"}},{"$f":"#REF!","v":{"$error":"#REF!"}},{"$f":"#REF!","v":{"$error":"#REF!"}},{"$f":"#REF!","v":{"$error":"#REF!"}},{"$f":"#REF!","v":{"$error":"#REF!"}},{"$f":"#REF!","v":{"$error":"#REF!"}},{"$f":"#REF!","v":{"$error":"#REF!"}},{"$f":"#REF!","v":{"$error":"#REF!"}},{"$f":"#REF!","v":{"$error":"#REF!"}},{"$f":"#REF!","v":{"$error":"#REF!"}},{"$f":"#REF!","v":{"$error":"#REF!"}},{"$f":"#REF!","v":{"$error":"#REF!"}},{"$f":"#REF!","v":{"$error":"#REF!"}},{"$f":"#REF!","v":{"$error":"#REF!"}},{"$f":"#REF!","v":{"$error":"#REF!"}},{"$f":"#REF!","v":{"$error":"#REF!"}}]
[{"$f":"#REF!","v":{"$error":"#REF!"}},{"$f":"#REF!","v":{"$error":"#REF!"}},{"$f":"#REF!","v":{"$error":"#REF!"}},{"$f":"#REF!","v":{"$error":"#REF!"}}]
[{"$f":"#REF!","v":{"$error":"#REF!"}},{"$f":"#REF!","v":{"$error":"#REF!"}},{"$f":"#REF!","v":{"$error":"#REF!"}},{"$f":"#REF!","v":{"$error":"#REF!"}},{"$f":"#REF!","v":{"$error":"#REF!"}},{"$f":"#REF!","v":{"$error":"#REF!"}},{"$f":"#REF!","v":{"$error":"#REF!"}},{"$f":"#REF!","v":{"$error":"#REF!"}},{"$f":"#REF!","v":{"$error":"#REF!"}},{"$f":"#REF!","v":{"$error":"#REF!"}},{"$f":"#REF!","v":{"$error":"#REF!"}},{"$f":"#REF!","v":{"$error":"#REF!"}},{"$f":"#REF!","v":{"$error":"#REF!"}},{"$f":"#REF!","v":{"$error":"#REF!"}},{"$f":"#REF!","v":{"$error":"#REF!"}},{"$f":"#REF!","v":{"$error":"#REF!"}},{"$f":"#REF!","v":{"$error":"#REF!"}},{"$f":"#REF!","v":{"$error":"#REF!"}},{"$f":"#REF!","v":{"$error":"#REF!"}},{"$f":"#REF!","v":{"$error":"#REF!"}},{"$f":"#REF!","v":{"$error":"#REF!"}},{"$f":"#REF!","v":{"$error":"#REF!"}},{"$f":"#REF!","v":{"$error":"#REF!"}},{"$f":"#REF!","v":{"$error":"#REF!"}},{"$f":"#REF!","v":{"$error":"#REF!"}}]
[{"$f":"#REF!","v":{"$error":"#REF!"}},{"$f":"IF(#REF!=\"\",\"\",#REF!)","v":{"$error":"#REF!"}},{"$f":"IF(#REF!=\"\",\"\",#REF!)","v":{"$error":"#REF!"}},{"$f":"IF(#REF!=\"\",\"\",#REF!)","v":{"$error":"#REF!"}},{"$f":"IF(#REF!=\"\",\"\",#REF!)","v":{"$error":"#REF!"}},{"$f":"IF(#REF!=\"\",\"\",#REF!)","v":{"$error":"#REF!"}},{"$f":"IF(#REF!=\"\",\"\",#REF!)","v":{"$error":"#REF!"}},{"$f":"IF(#REF!=\"\",\"\",#REF!)","v":{"$error":"#REF!"}},{"$f":"IF(#REF!=\"\",\"\",#REF!)","v":{"$error":"#REF!"}},{"$f":"IF(#REF!=\"\",\"\",#REF!)","v":{"$error":"#REF!"}},{"$f":"IF(#REF!=\"\",\"\",#REF!)","v":{"$error":"#REF!"}},{"$f":"IF(#REF!=\"\",\"\",#REF!)","v":{"$error":"#REF!"}},{"$f":"IF(#REF!=\"\",\"\",#REF!)","v":{"$error":"#REF!"}},{"$f":"IF(#REF!=\"\",\"\",#REF!)","v":{"$error":"#REF!"}},{"$f":"IF(#REF!=\"\",\"\",#REF!)","v":{"$error":"#REF!"}},{"$f":"IF(#REF!=\"\",\"\",#REF!)","v":{"$error":"#REF!"}},{"$f":"IF(#REF!=\"\",\"\",#REF!)","v":{"$error":"#REF!"}},{"$f":"IF(#REF!=\"\",\"\",#REF!)","v":{"$error":"#REF!"}},{"$f":"IF(#REF!=\"\",\"\",#REF!)","v":{"$error":"#REF!"}},{"$f":"IF(#REF!=\"\",\"\",#REF!)","v":{"$error":"#REF!"}},{"$f":"IF(#REF!=\"\",\"\",#REF!)","v":{"$error":"#REF!"}},{"$f":"IF(#REF!=\"\",\"\",#REF!)","v":{"$error":"#REF!"}}]
[{"$f":"#REF!","v":{"$error":"#REF!"}},{"$f":"#REF!","v":{"$error":"#REF!"}},{"$f":"#REF!","v":{"$error":"#REF!"}},{"$f":"#REF!","v":{"$error":"#REF!"}},{"$f":"#REF!","v":{"$error":"#REF!"}},{"$f":"#REF!","v":{"$error":"#REF!"}},{"$f":"#REF!","v":{"$error":"#REF!"}},{"$f":"#REF!","v":{"$error":"#REF!"}},{"$f":"#REF!","v":{"$error":"#REF!"}},{"$f":"#REF!","v":{"$error":"#REF!"}},{"$f":"#REF!","v":{"$error":"#REF!"}},{"$f":"#REF!","v":{"$error":"#REF!"}},{"$f":"#REF!","v":{"$error":"#REF!"}},{"$f":"#REF!","v":{"$error":"#REF!"}},{"$f":"#REF!","v":{"$error":"#REF!"}},{"$f":"#REF!","v":{"$error":"#REF!"}}]
[{"$f":"#REF!","v":{"$error":"#REF!"}},{"$f":"#REF!","v":{"$error":"#REF!"}},{"$f":"#REF!","v":{"$error":"#REF!"}},{"$f":"#REF!","v":{"$error":"#REF!"}},{"$f":"#REF!","v":{"$error":"#REF!"}},{"$f":"IF(#REF!=\"\",\"\",#REF!)","v":{"$error":"#REF!"}},{"$f":"#REF!","v":{"$error":"#REF!"}},{"$f":"#REF!","v":{"$error":"#REF!"}},{"$f":"#REF!","v":{"$error":"#REF!"}},{"$f":"#REF!","v":{"$error":"#REF!"}},{"$f":"#REF!","v":{"$error":"#REF!"}},{"$f":"#REF!","v":{"$error":"#REF!"}},{"$f":"#REF!","v":{"$error":"#REF!"}},{"$f":"#REF!","v":{"$error":"#REF!"}},{"$f":"IF(#REF!=\"\",\"\",#REF!)","v":{"$error":"#REF!"}},{"$f":"IF(#REF!=\"\",\"\",#REF!)","v":{"$error":"#REF!"}}]
[{"$f":"#REF!","v":{"$error":"#REF!"}},{"$f":"#REF!","v":{"$error":"#REF!"}},{"$f":"#REF!","v":{"$error":"#REF!"}},{"$f":"#REF!","v":{"$error":"#REF!"}},{"$f":"#REF!","v":{"$error":"#REF!"}},{"$f":"#REF!","v":{"$error":"#REF!"}},{"$f":"#REF!","v":{"$error":"#REF!"}},{"$f":"#REF!","v":{"$error":"#REF!"}},{"$f":"#REF!","v":{"$error":"#REF!"}},{"$f":"#REF!","v":{"$error":"#REF!"}},{"$f":"#REF!","v":{"$error":"#REF!"}},{"$f":"#REF!","v":{"$error":"#REF!"}},{"$f":"#REF!","v":{"$error":"#REF!"}},{"$f":"#REF!","v":{"$error":"#REF!"}},{"$f":"#REF!","v":{"$error":"#REF!"}},{"$f":"#REF!","v":{"$error":"#REF!"}},{"$f":"#REF!","v":{"$error":"#REF!"}},{"$f":"#REF!","v":{"$error":"#REF!"}},{"$f":"#REF!","v":{"$error":"#REF!"}},{"$f":"#REF!","v":{"$error":"#REF!"}},{"$f":"#REF!","v":{"$error":"#REF!"}},{"$f":"#REF!","v":{"$error":"#REF!"}}]
[{"$f":"#REF!","v":{"$error":"#REF!"}},{"$f":"#REF!","v":{"$error":"#REF!"}},{"$f":"#REF!","v":{"$error":"#REF!"}},{"$f":"#REF!","v":{"$error":"#REF!"}}]
[{"$f":"#REF!","v":{"$error":"#REF!"}},{"$f":"#REF!","v":{"$error":"#REF!"}},{"$f":"#REF!","v":{"$error":"#REF!"}},{"$f":"#REF!","v":{"$error":"#REF!"}},{"$f":"#REF!","v":{"$error":"#REF!"}},{"$f":"#REF!","v":{"$error":"#REF!"}},{"$f":"#REF!","v":{"$error":"#REF!"}},{"$f":"#REF!","v":{"$error":"#REF!"}},{"$f":"#REF!","v":{"$error":"#REF!"}},{"$f":"#REF!","v":{"$error":"#REF!"}},{"$f":"#REF!","v":{"$error":"#REF!"}},{"$f":"#REF!","v":{"$error":"#REF!"}},{"$f":"#REF!","v":{"$error":"#REF!"}},{"$f":"#REF!","v":{"$error":"#REF!"}},{"$f":"#REF!","v":{"$error":"#REF!"}},{"$f":"#REF!","v":{"$error":"#REF!"}},{"$f":"#REF!","v":{"$error":"#REF!"}},{"$f":"#REF!","v":{"$error":"#REF!"}},{"$f":"#REF!","v":{"$error":"#REF!"}},{"$f":"#REF!","v":{"$error":"#REF!"}},{"$f":"#REF!","v":{"$error":"#REF!"}},{"$f":"#REF!","v":{"$error":"#REF!"}},null,{"$f":"#REF!","v":{"$error":"#REF!"}}]
[{"$f":"#REF!","v":{"$error":"#REF!"}},{"$f":"IF(#REF!=\"\",\"\",#REF!)","v":{"$error":"#REF!"}},{"$f":"IF(#REF!=\"\",\"\",#REF!)","v":{"$error":"#REF!"}},{"$f":"IF(#REF!=\"\",\"\",#REF!)","v":{"$error":"#REF!"}},{"$f":"IF(#REF!=\"\",\"\",#REF!)","v":{"$error":"#REF!"}},{"$f":"IF(#REF!=\"\",\"\",#REF!)","v":{"$error":"#REF!"}},{"$f":"IF(#REF!=\"\",\"\",#REF!)","v":{"$error":"#REF!"}},{"$f":"IF(#REF!=\"\",\"\",#REF!)","v":{"$error":"#REF!"}},{"$f":"IF(#REF!=\"\",\"\",#REF!)","v":{"$error":"#REF!"}},{"$f":"IF(#REF!=\"\",\"\",#REF!)","v":{"$error":"#REF!"}},{"$f":"IF(#REF!=\"\",\"\",#REF!)","v":{"$error":"#REF!"}},{"$f":"IF(#REF!=\"\",\"\",#REF!)","v":{"$error":"#REF!"}},{"$f":"IF(#REF!=\"\",\"\",#REF!)","v":{"$error":"#REF!"}},{"$f":"IF(#REF!=\"\",\"\",#REF!)","v":{"$error":"#REF!"}},{"$f":"IF(#REF!=\"\",\"\",#REF!)","v":{"$error":"#REF!"}},{"$f":"IF(#REF!=\"\",\"\",#REF!)","v":{"$error":"#REF!"}},{"$f":"IF(#REF!=\"\",\"\",#REF!)","v":{"$error":"#REF!"}},{"$f":"IF(#REF!=\"\",\"\",#REF!)","v":{"$error":"#REF!"}},{"$f":"IF(#REF!=\"\",\"\",#REF!)","v":{"$error":"#REF!"}},{"$f":"IF(#REF!=\"\",\"\",#REF!)","v":{"$error":"#REF!"}}]
[{"$f":"#REF!","v":{"$error":"#REF!"}},{"$f":"#REF!","v":{"$error":"#REF!"}},{"$f":"#REF!","v":{"$error":"#REF!"}},{"$f":"#REF!","v":{"$error":"#REF!"}},{"$f":"#REF!","v":{"$error":"#REF!"}},{"$f":"#REF!","v":{"$error":"#REF!"}},{"$f":"#REF!","v":{"$error":"#REF!"}},{"$f":"#REF!","v":{"$error":"#REF!"}},{"$f":"#REF!","v":{"$error":"#REF!"}},{"$f":"#REF!","v":{"$error":"#REF!"}},{"$f":"#REF!","v":{"$error":"#REF!"}},{"$f":"#REF!","v":{"$error":"#REF!"}},{"$f":"#REF!","v":{"$error":"#REF!"}},{"$f":"#REF!","v":{"$error":"#REF!"}},{"$f":"#REF!","v":{"$error":"#REF!"}},{"$f":"#REF!","v":{"$error":"#REF!"}}]
[{"$f":"#REF!","v":{"$error":"#REF!"}},{"$f":"#REF!","v":{"$error":"#REF!"}},{"$f":"#REF!","v":{"$error":"#REF!"}},{"$f":"#REF!","v":{"$error":"#REF!"}},{"$f":"#REF!","v":{"$error":"#REF!"}},{"$f":"IF(#REF!=\"\",\"\",#REF!)","v":{"$error":"#REF!"}},{"$f":"#REF!","v":{"$error":"#REF!"}},{"$f":"#REF!","v":{"$error":"#REF!"}},{"$f":"#REF!","v":{"$error":"#REF!"}},{"$f":"#REF!","v":{"$error":"#REF!"}},{"$f":"#REF!","v":{"$error":"#REF!"}},{"$f":"#REF!","v":{"$error":"#REF!"}},{"$f":"#REF!","v":{"$error":"#REF!"}},{"$f":"#REF!","v":{"$error":"#REF!"}},{"$f":"IF(#REF!=\"\",\"\",#REF!)","v":{"$error":"#REF!"}},{"$f":"IF(#REF!=\"\",\"\",#REF!)","v":{"$error":"#REF!"}}]
[{"$f":"#REF!","v":{"$error":"#REF!"}},{"$f":"#REF!","v":{"$error":"#REF!"}},{"$f":"#REF!","v":{"$error":"#REF!"}},{"$f":"#REF!","v":{"$error":"#REF!"}},{"$f":"#REF!","v":{"$error":"#REF!"}},{"$f":"#REF!","v":{"$error":"#REF!"}},{"$f":"#REF!","v":{"$error":"#REF!"}},{"$f":"#REF!","v":{"$error":"#REF!"}},{"$f":"#REF!","v":{"$error":"#REF!"}},{"$f":"#REF!","v":{"$error":"#REF!"}},{"$f":"#REF!","v":{"$error":"#REF!"}},{"$f":"#REF!","v":{"$error":"#REF!"}},{"$f":"#REF!","v":{"$error":"#REF!"}},{"$f":"#REF!","v":{"$error":"#REF!"}},{"$f":"#REF!","v":{"$error":"#REF!"}},{"$f":"#REF!","v":{"$error":"#REF!"}},{"$f":"#REF!","v":{"$error":"#REF!"}},{"$f":"#REF!","v":{"$error":"#REF!"}},{"$f":"#REF!","v":{"$error":"#REF!"}},{"$f":"#REF!","v":{"$error":"#REF!"}},{"$f":"#REF!","v":{"$error":"#REF!"}},{"$f":"#REF!","v":{"$error":"#REF!"}},{"$f":"#REF!","v":{"$error":"#REF!"}},{"$f":"#REF!","v":{"$error":"#REF!"}},{"$f":"#REF!","v":{"$error":"#REF!"}}]
[{"$f":"#REF!","v":{"$error":"#REF!"}},{"$f":"#REF!","v":{"$error":"#REF!"}},{"$f":"#REF!","v":{"$error":"#REF!"}},{"$f":"#REF!","v":{"$error":"#REF!"}}]
[{"$f":"#REF!","v":{"$error":"#REF!"}},{"$f":"#REF!","v":{"$error":"#REF!"}},{"$f":"#REF!","v":{"$error":"#REF!"}},{"$f":"#REF!","v":{"$error":"#REF!"}},{"$f":"#REF!","v":{"$error":"#REF!"}},{"$f":"#REF!","v":{"$error":"#REF!"}},{"$f":"#REF!","v":{"$error":"#REF!"}},{"$f":"#REF!","v":{"$error":"#REF!"}},{"$f":"#REF!","v":{"$error":"#REF!"}},{"$f":"#REF!","v":{"$error":"#REF!"}},{"$f":"#REF!","v":{"$error":"#REF!"}},{"$f":"#REF!","v":{"$error":"#REF!"}},{"$f":"#REF!","v":{"$error":"#REF!"}},{"$f":"#REF!","v":{"$error":"#REF!"}},{"$f":"#REF!","v":{"$error":"#REF!"}},{"$f":"#REF!","v":{"$error":"#REF!"}},{"$f":"#REF!","v":{"$error":"#REF!"}},{"$f":"#REF!","v":{"$error":"#REF!"}},{"$f":"#REF!","v":{"$error":"#REF!"}},{"$f":"#REF!","v":{"$error":"#REF!"}},{"$f":"#REF!","v":{"$error":"#REF!"}},{"$f":"#REF!","v":{"$error":"#REF!"}},{"$f":"#REF!","v":{"$error":"#REF!"}},{"$f":"#REF!","v":{"$error":"#REF!"}},{"$f":"#REF!","v":{"$error":"#REF!"}},{"$f":"#REF!","v":{"$error":"#REF!"}}]
[{"$f":"#REF!","v":{"$error":"#REF!"}},{"$f":"IF(#REF!=\"\",\"\",#REF!)","v":{"$error":"#REF!"}},{"$f":"IF(#REF!=\"\",\"\",#REF!)","v":{"$error":"#REF!"}},{"$f":"IF(#REF!=\"\",\"\",#REF!)","v":{"$error":"#REF!"}},{"$f":"IF(#REF!=\"\",\"\",#REF!)","v":{"$error":"#REF!"}},{"$f":"IF(#REF!=\"\",\"\",#REF!)","v":{"$error":"#REF!"}},{"$f":"IF(#REF!=\"\",\"\",#REF!)","v":{"$error":"#REF!"}},{"$f":"IF(#REF!=\"\",\"\",#REF!)","v":{"$error":"#REF!"}},{"$f":"IF(#REF!=\"\",\"\",#REF!)","v":{"$error":"#REF!"}},{"$f":"IF(#REF!=\"\",\"\",#REF!)","v":{"$error":"#REF!"}},{"$f":"IF(#REF!=\"\",\"\",#REF!)","v":{"$error":"#REF!"}},{"$f":"IF(#REF!=\"\",\"\",#REF!)","v":{"$error":"#REF!"}},{"$f":"IF(#REF!=\"\",\"\",#REF!)","v":{"$error":"#REF!"}},{"$f":"IF(#REF!=\"\",\"\",#REF!)","v":{"$error":"#REF!"}},{"$f":"IF(#REF!=\"\",\"\",#REF!)","v":{"$error":"#REF!"}},{"$f":"IF(#REF!=\"\",\"\",#REF!)","v":{"$error":"#REF!"}},{"$f":"IF(#REF!=\"\",\"\",#REF!)","v":{"$error":"#REF!"}},{"$f":"IF(#REF!=\"\",\"\",#REF!)","v":{"$error":"#REF!"}},{"$f":"IF(#REF!=\"\",\"\",#REF!)","v":{"$error":"#REF!"}},{"$f":"IF(#REF!=\"\",\"\",#REF!)","v":{"$error":"#REF!"}},{"$f":"IF(#REF!=\"\",\"\",#REF!)","v":{"$error":"#REF!"}},{"$f":"IF(#REF!=\"\",\"\",#REF!)","v":{"$error":"#REF!"}},{"$f":"IF(#REF!=\"\",\"\",#REF!)","v":{"$error":"#REF!"}}]
[{"$f":"#REF!","v":{"$error":"#REF!"}},{"$f":"#REF!","v":{"$error":"#REF!"}},{"$f":"#REF!","v":{"$error":"#REF!"}},{"$f":"#REF!","v":{"$error":"#REF!"}},{"$f":"#REF!","v":{"$error":"#REF!"}},{"$f":"#REF!","v":{"$error":"#REF!"}},{"$f":"#REF!","v":{"$error":"#REF!"}},{"$f":"#REF!","v":{"$error":"#REF!"}},{"$f":"#REF!","v":{"$error":"#REF!"}},{"$f":"#REF!","v":{"$error":"#REF!"}},{"$f":"#REF!","v":{"$error":"#REF!"}},{"$f":"#REF!","v":{"$error":"#REF!"}},{"$f":"#REF!","v":{"$error":"#REF!"}},{"$f":"#REF!","v":{"$error":"#REF!"}},{"$f":"#REF!","v":{"$error":"#REF!"}},{"$f":"#REF!","v":{"$error":"#REF!"}}]
[{"$f":"#REF!","v":{"$error":"#REF!"}},{"$f":"#REF!","v":{"$error":"#REF!"}},{"$f":"#REF!","v":{"$error":"#REF!"}},{"$f":"#REF!","v":{"$error":"#REF!"}},{"$f":"#REF!","v":{"$error":"#REF!"}},{"$f":"IF(#REF!=\"\",\"\",#REF!)","v":{"$error":"#REF!"}},{"$f":"#REF!","v":{"$error":"#REF!"}},{"$f":"#REF!","v":{"$error":"#REF!"}},{"$f":"#REF!","v":{"$error":"#REF!"}},{"$f":"#REF!","v":{"$error":"#REF!"}},{"$f":"#REF!","v":{"$error":"#REF!"}},{"$f":"#REF!","v":{"$error":"#REF!"}},{"$f":"#REF!","v":{"$error":"#REF!"}},{"$f":"#REF!","v":{"$error":"#REF!"}},{"$f":"IF(#REF!=\"\",\"\",#REF!)","v":{"$error":"#REF!"}},{"$f":"IF(#REF!=\"\",\"\",#REF!)","v":{"$error":"#REF!"}}]
[{"$f":"'MEW nonplant'!B11","v":"No."},{"$f":"'MEW nonplant'!B13","v":1},{"$f":"'MEW nonplant'!B16","v":2},{"$f":"'MEW nonplant'!B19","v":3},{"$f":"'MEW nonplant'!B21","v":4},{"$f":"'MEW nonplant'!B23","v":5},{"$f":"'MEW nonplant'!B26","v":6},{"$f":"'MEW nonplant'!B29","v":7},{"$f":"'MEW nonplant'!B32","v":8},{"$f":"'MEW nonplant'!B35","v":9},{"$f":"'MEW nonplant'!B39","v":10},{"$f":"'MEW nonplant'!B42","v":11},{"$f":"'MEW nonplant'!B45","v":12},{"$f":"'MEW nonplant'!B48","v":13},{"$f":"'MEW nonplant'!B51","v":14},{"$f":"'MEW nonplant'!B53","v":15},{"$f":"'MEW nonplant'!B58","v":16.10},{"$f":"'MEW nonplant'!B61","v":16.20},{"$f":"'MEW nonplant'!B64","v":16.30},{"$f":"'MEW nonplant'!B67","v":17},{"$f":"'MEW nonplant'!B70","v":18},{"$f":"'MEW nonplant'!C75","v":"Total score"},{"$f":"'MEW nonplant'!C77","v":"Quality Score"}]
[{"$f":"'MEW nonplant'!C2","v":"Category"},{"$f":"'MEW nonplant'!E2","v":"MEW_nonplant"},{"$f":"'MEW nonplant'!C3","v":"Paper and data unique identifier(eg. 1-1,10-150)"},{"$f":"'MEW nonplant'!E3","v":"1429-1"}]
[{"$f":"'MEW nonplant'!G11","v":"Scores"},{"$f":"'MEW nonplant'!G12","v":10},{"$f":"'MEW nonplant'!G15","v":10},{"$f":"'MEW nonplant'!G18","v":5},{"$f":"'MEW nonplant'!G21","v":5},{"$f":"'MEW nonplant'!G23","v":5},{"$f":"'MEW nonplant'!G26","v":5},{"$f":"'MEW nonplant'!G29","v":2},{"$f":"'MEW nonplant'!G32","v":5},{"$f":"'MEW nonplant'!G35","v":5},{"$f":"'MEW nonplant'!G38","v":0},{"$f":"'MEW nonplant'!G41","v":2},{"$f":"'MEW nonplant'!G44","v":0},{"$f":"'MEW nonplant'!G47","v":4},{"$f":"'MEW nonplant'!G50","v":4},{"$f":"'MEW nonplant'!G53","v":0},{"$f":"'MEW nonplant'!G57","v":1},{"$f":"'MEW nonplant'!G60","v":1},{"$f":"'MEW nonplant'!G63","v":1},{"$f":"'MEW nonplant'!G66","v":1},{"$f":"'MEW nonplant'!G69","v":3},{"$f":"'MEW nonplant'!G75","v":69},{"$f":"'MEW nonplant'!G77","v":0.73404255319148937},{"$f":"'MEW nonplant'!H77","v":""}]
[{"$f":"'MEW nonplant'!H11","v":"Answers"},{"$f":"IF('MEW nonplant'!H12=\"\",\"\",'MEW nonplant'!H12)","v":"48 hours"},{"$f":"IF('MEW nonplant'!H15=\"\",\"\",'MEW nonplant'!H15)","v":"Normal larvae have achieved the pluteus stage of development, which is characterized by pyramidal shaped larvae with four highly\ndeveloped skeletal rods and a distinct gut"},{"$f":"IF('MEW nonplant'!H18=\"\",\"\",'MEW nonplant'!H18)","v":"NOEC"},{"$f":"IF('MEW nonplant'!H21=\"\",\"\",'MEW nonplant'!H21)","v":"NOEC"},{"$f":"IF('MEW nonplant'!H23=\"\",\"\",'MEW nonplant'!H23)","v":"Two sea water controls from different sources"},{"$f":"IF('MEW nonplant'!H26=\"\",\"\",'MEW nonplant'!H26)","v":"4 replicates per treatment"},{"$f":"IF('MEW nonplant'!H29=\"\",\"\",'MEW nonplant'!H29)","v":"Refers to USEPA procedures for urchins"},{"$f":"IF('MEW nonplant'!H32=\"\",\"\",'MEW nonplant'!H32)","v":"Gametes"},{"$f":"IF('MEW nonplant'!H35=\"\",\"\",'MEW nonplant'!H35)","v":"Dilution water consisted of uncontaminated Pago Bay surface seawater filtered to 0.45 um"},{"$f":"IF('MEW nonplant'!H38=\"\",\"\",'MEW nonplant'!H38)","v":"Not stated"},{"$f":"IF('MEW nonplant'!H41=\"\",\"\",'MEW nonplant'!H41)","v":"Not clear, assume measured once"},{"$f":"IF('MEW nonplant'!H44=\"\",\"\",'MEW nonplant'!H44)","v":"No"},{"$f":"IF('MEW nonplant'!H47=\"\",\"\",'MEW nonplant'!H47)","v":"Observable in Table 2"},{"$f":"IF('MEW nonplant'!H50=\"\",\"\",'MEW nonplant'!H50)","v":"CETIS using Dunnetts for NOEC"},{"$f":"IF('MEW nonplant'!H53=\"\",\"\",'MEW nonplant'!H53)","v":"p-value <0.001"},{"$f":"IF('MEW nonplant'!H57=\"\",\"\",'MEW nonplant'!H57)","v":"Stated but not clear where or how measured"},{"$f":"IF('MEW nonplant'!H60=\"\",\"\",'MEW nonplant'!H60)","v":"Stated but not clear where or how measured"},{"$f":"IF('MEW nonplant'!H63=\"\",\"\",'MEW nonplant'!H63)","v":"Stated but not clear where or how measured"},{"$f":"IF('MEW nonplant'!H66=\"\",\"\",'MEW nonplant'!H66)","v":"Room temperature only"},{"$f":"IF('MEW nonplant'!H69=\"\",\"\",'MEW nonplant'!H69)","v":"Control measured, blanks measured, SRM measured"}]
[{"$f":"'MEW nonplant'!G3","v":"Species (Scientific name)"},{"$f":"'MEW nonplant'!G4","v":"Lifestage"},{"$f":"'MEW nonplant'!G5","v":"Exposure duration"},{"$f":"'MEW nonplant'!G6","v":"Measure of toxicity"},{"$f":"'MEW nonplant'!G7","v":"Toxicity endpoint"},{"$f":"'MEW nonplant'!G8","v":"Toxicity value"},{"$f":"'MEW nonplant'!J2","v":"Taxonomic group"},{"$f":"'MEW nonplant'!J3","v":"Phylum"},{"$f":"'MEW nonplant'!J4","v":"Class"},{"$f":"'MEW nonplant'!J5","v":"Media"},{"$f":"'MEW nonplant'!J6","v":"Temperature "},{"$f":"'MEW nonplant'!J7","v":"Acute Or Chronic "},{"$f":"'MEW nonplant'!J8","v":"PH"},{"$f":"'MEW nonplant'!J9","v":"Salinity/Conductivity"},{"$f":"'MEW nonplant'!C4","v":"Citation"},{"$f":"'MEW nonplant'!G2","v":"Citation No."}]
[{"$f":"'MEW nonplant'!Q3","v":"Diadema savignyi "},{"$f":"'MEW nonplant'!T3","v":"embryo"},{"$f":"'MEW nonplant'!W3","v":"48 h"},{"$f":"'MEW nonplant'!Z3","v":"NOEC"},{"$f":"'MEW nonplant'!AC3","v":"Normal development"},{"$f":"IF('MEW nonplant'!H8=\"\",\"\",'MEW nonplant'!H8)","v":10},{"$f":"'MEW nonplant'!AF3","v":"Echinoderms"},{"$f":"'MEW nonplant'!AI3","v":"Echinodermata"},{"$f":"'MEW nonplant'!AL3","v":"Echinoidea"},{"$f":"'MEW nonplant'!AO3","v":"Marinewater"},{"$f":"'MEW nonplant'!AR3","v":"25°C"},{"$f":"'MEW nonplant'!AU3","v":"Chronic"},{"$f":"'MEW nonplant'!AX3","v":8.10},{"$f":"'MEW nonplant'!BA3","v":"34 ppt"},{"$f":"IF('MEW nonplant'!E4=\"\",\"\",'MEW nonplant'!E4)","v":"Rosen G, Rivera-Duarte I, Colvin MA, Dolecal RE, Raymundo LJ, Earley PJ. (2015). Nickel and copper toxicity to embryos of the long-spined sea urchin, Diadema savignyi. Bulletin of Environmental Contamination and Toxicology 95, "},{"$f":"IF('MEW nonplant'!H2=\"\",\"\",'MEW nonplant'!H2)","v":"1429"}]
[{"$f":"'MEW plant'!B11","v":"No."},{"$f":"'MEW plant'!B13","v":1},{"$f":"'MEW plant'!B16","v":2},{"$f":"'MEW plant'!B19","v":3},{"$f":"'MEW plant'!B21","v":4},{"$f":"'MEW plant'!B23","v":5},{"$f":"'MEW plant'!B26","v":6},{"$f":"'MEW plant'!B29","v":7},{"$f":"'MEW plant'!B32","v":8},{"$f":"'MEW plant'!B35","v":9},{"$f":"'MEW plant'!B39","v":10},{"$f":"'MEW plant'!B42","v":11},{"$f":"'MEW plant'!B45","v":12},{"$f":"'MEW plant'!B48","v":13},{"$f":"'MEW plant'!B51","v":14},{"$f":"'MEW plant'!B53","v":15},{"$f":"'MEW plant'!B57","v":16.10},{"$f":"'MEW plant'!B61","v":16.20},{"$f":"'MEW plant'!B64","v":17},{"$f":"'MEW plant'!B67","v":18},{"$f":"'MEW plant'!C72","v":"Total score"},{"$f":"'MEW plant'!C74","v":"Quality Score"}]
[{"$f":"'MEW plant'!C2","v":"Category"},{"$f":"'MEW plant'!E2","v":"MEW_plant"},{"$f":"'MEW plant'!C3","v":"Paper and data unique identifier(eg. 1-1,10-150)"},{"$f":"'MEW plant'!E3","v":"638-3"}]
[{"$f":"'MEW plant'!G11","v":"Scores"},{"$f":"'MEW plant'!G12","v":10},{"$f":"'MEW plant'!G15","v":5},{"$f":"'MEW plant'!G18","v":5},{"$f":"'MEW plant'!G21","v":5},{"$f":"'MEW plant'!G23","v":5},{"$f":"'MEW plant'!G26","v":5},{"$f":"'MEW plant'!G29","v":0},{"$f":"'MEW plant'!G32","v":5},{"$f":"'MEW plant'!G35","v":5},{"$f":"'MEW plant'!G38","v":0},{"$f":"'MEW plant'!G41","v":0},{"$f":"'MEW plant'!G44","v":4},{"$f":"'MEW plant'!G47","v":4},{"$f":"'MEW plant'!G50","v":4},{"$f":"'MEW plant'!G53","v":4},{"$f":"'MEW plant'!G57","v":0},{"$f":"'MEW plant'!G61","v":0},{"$f":"'MEW plant'!G64","v":0},{"$f":"'MEW plant'!G67","v":0},{"$f":"'MEW plant'!G72","v":62},{"$f":"'MEW plant'!G74","v":0.68131868131868134},{"$f":"'MEW plant'!H74","v":"The highest possible grade for this datum is acceptable."}]
[{"$f":"'MEW plant'!H11","v":"Answers"},{"$f":"IF('MEW plant'!H12=\"\",\"\",'MEW plant'!H12)","v":"96 hr"},{"$f":"IF('MEW plant'!H15=\"\",\"\",'MEW plant'!H15)","v":"Some defined, some only stated (Gametophyte length (growth); germination and number of cells per gametophyte; reference to other studies)"},{"$f":"IF('MEW plant'!H18=\"\",\"\",'MEW plant'!H18)","v":"NOEC"},{"$f":"IF('MEW plant'!H21=\"\",\"\",'MEW plant'!H21)","v":"NOEC"},{"$f":"IF('MEW plant'!H23=\"\",\"\",'MEW plant'!H23)","v":"Dilution water only control"},{"$f":"IF('MEW plant'!H26=\"\",\"\",'MEW plant'!H26)","v":""},{"$f":"IF('MEW plant'!H29=\"\",\"\",'MEW plant'!H29)","v":"Not stated or inferred. Some reporting in results section."},{"$f":"IF('MEW plant'!H32=\"\",\"\",'MEW plant'!H32)","v":"Zoospores"},{"$f":"IF('MEW plant'!#REF!=\"\",\"\",'MEW plant'!#REF!)","v":{"$error":"#REF!"}},{"$f":"IF('MEW plant'!H38=\"\",\"\",'MEW plant'!H38)","v":"Not stated, but was static"},{"$f":"IF('MEW plant'!H41=\"\",\"\",'MEW plant'!H41)","v":"Stock solutions measured only"},{"$f":"IF('MEW plant'!H44=\"\",\"\",'MEW plant'!H44)","v":"SDS"},{"$f":"IF('MEW plant'!H47=\"\",\"\",'MEW plant'!H47)","v":"Yes, observable in results"},{"$f":"IF('MEW plant'!H50=\"\",\"\",'MEW plant'!H50)","v":"ANOVA and Dunnett's t test; common method"},{"$f":"IF('MEW plant'!H53=\"\",\"\",'MEW plant'!H53)","v":"p-value < 0.05"},{"$f":"IF('MEW plant'!H57=\"\",\"\",'MEW plant'!H57)","v":"Not measured"},{"$f":"IF('MEW plant'!H60=\"\",\"\",'MEW plant'!H60)","v":"Not measured"},{"$f":"IF('MEW plant'!H63=\"\",\"\",'MEW plant'!H63)","v":"Stated"},{"$f":"IF('MEW plant'!H66=\"\",\"\",'MEW plant'!H66)","v":"Not measured"}]
[{"$f":"'MEW plant'!G3","v":"Species (Scientific name)"},{"$f":"'MEW plant'!G4","v":"Lifestage"},{"$f":"'MEW plant'!G5","v":"Exposure duration"},{"$f":"'MEW plant'!G6","v":"Measure of toxicity"},{"$f":"'MEW plant'!G7","v":"Toxicity endpoint"},{"$f":"'MEW plant'!G8","v":"Toxicity value"},{"$f":"'MEW plant'!J2","v":"Taxonomic group"},{"$f":"'MEW plant'!J3","v":"Phylum"},{"$f":"'MEW plant'!J4","v":"Class"},{"$f":"'MEW plant'!J5","v":"Media"},{"$f":"'MEW plant'!J6","v":"Temperature "},{"$f":"'MEW plant'!J7","v":"Acute Or Chronic "},{"$f":"'MEW plant'!J8","v":"PH"},{"$f":"'MEW plant'!J9","v":"Salinity/Conductivity"},{"$f":"'MEW plant'!C4","v":"Citation"},{"$f":"'MEW plant'!G2","v":"Citation No."}]
[{"$f":"'MEW plant'!Q3","v":"Ulva fasciata"},{"$f":"'MEW plant'!T3","v":"Germlings"},{"$f":"'MEW plant'!W3","v":"96 h"},{"$f":"'MEW plant'!Z3","v":"NOEC"},{"$f":"'MEW plant'!AC3","v":"Reproduction"},{"$f":"IF('MEW plant'!H8=\"\",\"\",'MEW plant'!H8)","v":27.30},{"$f":"'MEW plant'!AF3","v":"Green algae"},{"$f":"'MEW plant'!AI3","v":"Chlorophyta"},{"$f":"'MEW plant'!AL3","v":"Ulvophyceae"},{"$f":"'MEW plant'!AO3","v":"Filtered seawater"},{"$f":"'MEW plant'!AR3","v":20},{"$f":"'MEW plant'!AU3","v":"Chronic"},{"$f":"'MEW plant'!AX3","v":"NR"},{"$f":"'MEW plant'!BA3","v":"NR"},{"$f":"IF('MEW plant'!E4=\"\",\"\",'MEW plant'!E4)","v":"Hooten RL, Carr RS. (1998). Development and application of a marine sediment pore-water toxicity test using Ulva fasciata zoospores. Environmental Toxicology and Chemistry 17, 932-940."},{"$f":"IF('MEW plant'!H2=\"\",\"\",'MEW plant'!H2)","v":"638"}]

{"sheet":"MEW nonplant","index":5,"n_rows":84,"n_cols":53,"rows_kept":84,"cut":false,"hidden":false,"merged":[[3,4,7,4],[9,2,9,4],[11,2,13,2],[11,7,13,7],[14,2,16,2],[14,7,16,7],[17,2,19,2],[17,7,19,7],[20,2,21,2],[20,7,21,7],[22,2,24,2],[22,7,24,7],[25,2,27,2],[25,7,27,7],[28,2,30,2],[28,7,30,7],[31,2,33,2],[31,7,33,7],[34,2,36,2],[34,7,36,7],[37,2,39,2],[37,7,39,7],[40,2,42,2],[40,7,42,7],[43,2,45,2],[43,7,45,7],[46,2,48,2],[46,7,48,7],[49,2,51,2],[49,7,51,7],[68,2,71,2],[68,7,71,7],[56,7,58,7],[65,7,67,7],[52,2,54,2],[52,7,54,7],[59,7,61,7],[65,2,67,2],[62,2,64,2],[62,7,64,7]]}
[null,1,"Fill in the blank cells below, based on information provided in the paper being assessed. You can either pick an option from the dropdown list or add the appropriate detail using the 'Add to list' button. ",null,null,{"$f":"IF(BA3=\"\",0,1)","v":1},null,null,null,null,null,null,null,null,"* All the text in RED are used for drop down list ,make changes with caution."]
[null,null,"Category",{"$f":"IF(AF3=\"\",0,1)","v":1},"MEW_nonplant",{"$f":"IF(E3=\"\",0,1)","v":1},"Citation No.",{"$f":"IF(ISERROR(FIND(\"-\",E3)),E3,LEFT(E3,FIND(\"-\",E3)-1))","v":"1429"},null,"Taxonomic group",null,null,null,null,"Species",null,null,"Lifestage",null,null,"Exposure duration",null,null,"Measure of toxicity",null,null,"Toxicity endpoint",null,null,"Taxonomic group",null,null,"Phylum",null,null,"Class",null,null,"Media",null,null,"Temperature ",null,null,"Acute Or Chronic",null,null,"PH",null,null,"Salinity/Comdictivity"]
[null,null,"Paper and data unique identifier(eg. 1-1,10-150)",{"$f":"IF(AI3=\"\",0,1)","v":1},"1429-1",{"$f":"IF(E4=\"\",0,1)","v":1},"Species (Scientific name)",null,null,"Phylum",null,null,null,null,"Acanthopagrus schlegelii schlegelii",28,{"$f":"IF(P3=0,\"\",INDEX(O3:O105,P3))","v":"Diadema savignyi "},"1 month",4,{"$f":"IF(S3=0,\"\",INDEX(R3:R105,S3))","v":"embryo"},"11 hour",14,{"$f":"IF(V3=0,\"\",INDEX(U3:U105,V3))","v":"48 h"},"2 d",7,{"$f":"IF(Y3=0,\"\",INDEX(X3:X105,Y3))","v":"NOEC"},"cell-specific growth",6,{"$f":"IF(AB3=0,\"\",INDEX(AA3:AA105,AB3))","v":"Normal development"},"Annelids",5,{"$f":"IF(AE3=0,\"\",INDEX(AD3:AD105,AE3))","v":"Echinoderms"},"Annelida",6,{"$f":"IF(AH3=0,\"\",INDEX(AG3:AG105,AH3))","v":"Echinodermata"},"Actinopterygii",6,{"$f":"IF(AK3=0,\"\",INDEX(AJ3:AJ105,AK3))","v":"Echinoidea"},"Artificial seawater",5,{"$f":"IF(AN3=0,\"\",INDEX(AM3:AM105,AN3))","v":"Marinewater"},14,16,{"$f":"IF(AQ3=0,\"\",INDEX(AP3:AP105,AQ3))","v":"25°C"},"Acute",2,{"$f":"IF(AT3=0,\"\",INDEX(AS3:AS105,AT3))","v":"Chronic"},7.71,4,{"$f":"IF(AW3=0,\"\",INDEX(AV3:AV105,AW3))","v":8.10},25,10,{"$f":"IF(AZ3=0,\"\",INDEX(AY3:AY105,AZ3))","v":"34 ppt"}]
[null,null,"Citation",{"$f":"IF(AL3=\"\",0,1)","v":1},"Rosen G, Rivera-Duarte I, Colvin MA, Dolecal RE, Raymundo LJ, Earley PJ. (2015). Nickel and copper toxicity to embryos of the long-spined sea urchin, Diadema savignyi. Bulletin of Environmental Contamination and Toxicology 95, ",{"$f":"IF(H8=\"\",0,1)","v":1},"Lifestage",null,null,"Class",null,null,null,null,"Aedes albopictus",null,null,"1 year old",null,null,"12 d",null,null,"EC10",null,null,"Fertilisation",null,null,"Bryozoa",null,null,"Chlorophyta",null,null,"Anthozoa",null,null,"cell culture media for marine alga",null,null,16,null,null,"Chronic",null,null,7.80,null,null,27.50]
[null,null,null,{"$f":"IF(AO3=\"\",0,1)","v":1},null,{"$f":"IF(AX3=\"\",0,1)","v":1},"Exposure duration",null,null,"Media",null,null,null,null,"Aiptasia pulchella",null,null,"Adult",null,null,"13 days",null,null,"EC15",null,null,"Growth",null,null,"Cnidaria",null,null,"Chordata",null,null,"Bivalve",null,null,"Filtered natural seawater",null,null,18,null,null,"N.A.",null,null,8,null,null,28]
[null,null,null,{"$f":"IF(AR3=\"\",0,1)","v":1},null,{"$f":"IF(Q3=\"\",0,1)","v":1},"Measure of toxicity",null,null,"Temperature ",null,null,null,null,"Amphiblanus amphitrite",null,null,"embryo",null,null,"14 d",null,null,"EC20",null,null,"Mortality",null,null,"cyanobacteria",null,null,"Cnidaria",null,null,"Branchiopoda",null,null,"Freshwater",null,null,19,null,null,null,null,null,8.10,null,null,32]
[null,null,null,{"$f":"IF(AU3=\"\",0,1)","v":1},null,{"$f":"IF(T3=\"\",0,1)","v":1},"Toxicity endpoint",null,null,"Acute Or Chronic ",null,null,null,null,"Atherinops affinis",null,null,"Gametes",null,null,"18 d",null,null,"LC50",null,null,"N.A.",null,null,"Echinoderms",null,null,"Cyanobacteria",null,null,"Chlorophyceae",null,null,"Marinewater",null,null,20,null,null,null,null,null,8.1999999999999993,null,null,"150 uS/cm"]
[null,null,null,null,null,{"$f":"IF(W3=\"\",0,1)","v":1},"Toxicity value",10,null,"PH",null,null,null,null,"Australian Bass",null,null,"Juvenile",null,null,"20 d",null,null,"N.A.",null,null,"Normal development",null,null,"Fish ",null,null,"Echinodermata",null,null,"Echinoidea",null,null,"N.A.",null,null,21,null,null,null,null,null,"8.15-8.48",null,null,"23-37"]
[null,2,"Select the appropriate answer option to each question. Comments can be added to the cells in column H.",null,null,{"$f":"IF(Z3=\"\",0,1)","v":1},null,null,null,"Salinity/Conductivity",null,null,null,null,"Bugula neritina",null,null,"Larvae",null,null,"21 d",null,null,"NOEC",null,null,"Population",null,null,"Macroinvertebrate",null,null,"Ectoprocta",null,null,"Gastropoda",null,null,"Natural estuarine water, artificial seawater and DI water",null,null,21,null,null,null,null,null,"N.A.",null,null,"25-35"]
[null,"*","If the selected answer option does not work try clicking on any other cell first and then click back on the answer option again.",null,null,{"$f":"IF(AC3=\"\",0,1)","v":1},null,null,null,null,null,null,null,null,"Celleporaria nodulosa",null,null,"N.A.",null,null,"24 h",null,null,null,null,null,"Reproduction",null,null,"Microalga",null,null,"Mollusca",null,null,"Gymnolaemata",null,null,"Oceanic seawater, estuarine seawater, brine",null,null,22,null,null,null,null,null,"NR",null,null,"30 ppt"]
[null,"No.","Question","Marks Awarded","Answer Options","Option References","Scores","Answers",null,null,null,null,null,null,"Celleporaria sp.",null,null,null,null,null,"25 d",null,null,null,null,null,null,null,null,"Molluscs",null,null,"N.A.",null,null,"Hexanauplia",null,null,"seawater",null,null,23,null,null,null,null,null,"PH11",null,null,"33 ppt"]
[null,null,"Was the duration of the exposure stated (e.g. 48 or 96 h)?",10,null,1,{"$f":"IF(F15=0,0,INDEX($D12:$D13,F12,1))","v":10},"48 hours",null,null,null,null,null,null,"Chlorella sp.",null,null,null,null,null,"28 d",null,null,null,null,null,null,null,null,"Molluscs",null,null,"Tracheophyta",null,null,"N.A.",null,null,null,null,null,24,null,null,null,null,null,"PH7.0",null,null,"34 ppt"]
[null,1,null,0,null,null,null,null,null,null,null,null,null,null,"Crassostrea rhizophorae",null,null,null,null,null,"3 d",null,null,null,null,null,null,null,null,"N.A.",null,null,null,null,null,"Perciformes",null,null,null,null,null,27,null,null,null,null,null,null,null,null,"35 ppt"]
[null,null,null,null,null,null,null,null,null,null,null,null,null,null,"Epinephelus coioides",null,null,null,null,null,"3 h",null,null,null,null,null,null,null,null,null,null,null,null,null,null,"Polychaeta",null,null,null,null,null,28,null,null,null,null,null,null,null,null,"36 ppt"]
[null,null,"Was the biological endpoint (e.g., immobilization or population growth) stated and defined (10 marks)? Award 5 marks if the biological endpoint is only stated.",10,null,1,{"$f":"IF(F15=0,0,INDEX($D15:$D17,F15,1))","v":10},"Normal larvae have achieved the pluteus stage of development, which is characterized by pyramidal shaped larvae with four highly\ndeveloped skeletal rods and a distinct gut",null,null,null,null,null,null,"Evechinus chloroticus",null,null,null,null,null,"30 d",null,null,null,null,null,null,null,null,null,null,null,null,null,null,null,null,null,null,null,null,29,null,null,null,null,null,null,null,null,"N.A."]
[null,2,null,5,null,null,null,null,null,null,null,null,null,null,"Exaiptasia pallida",null,null,null,null,null,"48 h",null,null,null,null,null,null,null,null,null,null,null,null,null,null,null,null,null,null,null,null,"15°C",null,null,null,null,null,null,null,null,"NR"]
[null,null,null,0,null,null,null,null,null,null,null,null,null,null,"Haliotis diversicolor ssp. supertexta",null,null,null,null,null,"5 hr",null,null,null,null,null,null,null,null,null,null,null,null,null,null,null,null,null,null,null,null,"22-25"]
[null,null,"Was the biological effect stated (e.g. LC or NOEC)?",5,null,1,{"$f":"IF(F18=0,0,INDEX($D18:$D19,F18,1))","v":5},"NOEC",null,null,null,null,null,null,"Haliotis iris",null,null,null,null,null,"60 min",null,null,null,null,null,null,null,null,null,null,null,null,null,null,null,null,null,null,null,null,"25°C"]
[null,3,null,0,null,null,null,null,null,null,null,null,null,null,"Heliocidaris tuberculata",null,null,null,null,null,"7 d",null,null,null,null,null,null,null,null,null,null,null,null,null,null,null,null,null,null,null,null,"N.A."]
[null,null,null,null,null,null,null,null,null,null,null,null,null,null,"Hydroides elegans",null,null,null,null,null,"8 d",null,null,null,null,null,null,null,null,null,null,null,null,null,null,null,null,null,null,null,null,"NR"]
[null,4,"Was the biological effect quantified (e.g. 50% effect, 25% effect)? \nNote: The effect for NOEC and LOEC data must be quantified.",5,null,1,{"$f":"IF(F21=0,0,INDEX($D21:$D22,F21,1))","v":5},"NOEC",null,null,null,null,null,null,"Mimachlamys asperrima",null,null,null,null,null,"9 d"]
[null,null,null,0,null,null,null,null,null,null,null,null,null,null,"Montipora capitata",null,null,null,null,null,"96-h"]
[null,5,"Were appropriate controls (e.g. a no-toxicant control and/or solvent control) used?",5,null,1,{"$f":"IF(F23=0,0,INDEX($D23:$D24,F23,1))","v":5},"Two sea water controls from different sources",null,null,null,null,null,null,"Mytilus galloprovincialis",null,null,null,null,null,"N.A."]
[null,null,null,0,null,null,null,null,null,null,null,null,null,null,"Mytilus trossulus"]
[null,null,null,null,null,null,null,null,null,null,null,null,null,null,"N.A."]
[null,6,"Was each control and contaminant concentration at least duplicated?",5,null,1,{"$f":"IF(F26=0,0,INDEX($D26:$D27,F26,1))","v":5},"4 replicates per treatment",null,null,null,null,null,null,"Platygyra daedalea"]
[null,null,null,0,null,null,null,null,null,null,null,null,null,null,"Ruditapes philippinarum"]
[null,null,null,null,null,null,null,null,null,null,null,null,null,null,"Sparus aurata"]
[null,7,"Were test acceptability criteria stated (e.g. mortality in controls must not exceed a certain percentage) (5 marks)?\nOR Were test acceptability criteria inferred (e.g. test method used [USEPA, OECD, ASTM etc.]) (award 2 marks). \nNote: Data that fail the acceptability criteria are automatically deemed to be of unacceptable quality and must not be used. ",5,null,2,{"$f":"IF(F29=0,0,INDEX($D29:$D31,F29,1))","v":2},"Refers to USEPA procedures for urchins",null,null,null,null,null,null,"Synechococcus sp."]
[null,null,null,2,null,null,null,null,null,null,null,null,null,null,"Diadema savignyi "]
[null,null,null,0]
[null,8,"Were the characteristics of the test organism (e.g. length, mass, age) stated?",5,null,1,{"$f":"IF(F32=0,0,INDEX($D32:$D34,F32,1))","v":5},"Gametes"]
[null,null,null,0]
[]
[null,9,"Was the type of test media used stated?",5,null,1,{"$f":"IF(F35=0,0,INDEX($D35:$D37,F35,1))","v":5},"Dilution water consisted of uncontaminated Pago Bay surface seawater filtered to 0.45 um"]
[null,null,null,0]
[]
[null,null,"Was the type of exposure (e.g. static, flow through) stated? ",4,null,2,{"$f":"IF(F38=0,0,INDEX($D38:$D40,F38,1))","v":0},"Not stated"]
[null,10,null,0]
[]
[null,null,"Were the contaminant concentrations measured at the beginning and end of the exposure (4 marks)? Award 2 marks if they were measured only once during the test.\nNote: If the concentrations were not measured then automatically the data cannot be high quality. ",4,null,2,{"$f":"IF(F41=0,0,INDEX($D41:$D43,F41,1))","v":2},"Not clear, assume measured once"]
[null,11,null,2]
[null,null,null,0]
[null,null,"Were parallel reference toxicant toxicity tests conducted?",4,null,2,{"$f":"IF(F44=0,0,INDEX($D44:$D46,F44,1))","v":0},"No"]
[null,12,null,0]
[]
[null,null,"Was there a concentration–response relationship either observable or stated?",4,null,1,{"$f":"IF(F47=0,0,INDEX($D47:$D49,F47,1))","v":4},"Observable in Table 2"]
[null,13,null,0]
[]
[null,null,"Was an appropriate statistical method or model used to determine the toxicity?\nNote: They should be accepted by a recognised national or international regulatory body (e.g. USEPA, OECD, ASTM). ",4,null,1,{"$f":"IF(F50=0,0,INDEX($D50:$D52,F50,1))","v":4},"CETIS using Dunnetts for NOEC"]
[null,14,null,0]
[]
[null,15,"For LC/EC/BEC data was an estimate of variability provided? \nOR \nFor NO EC/LOEC data was the significance level 0.05 or less?  \n\n",4,null,2,{"$f":"IF(F53=0,0,INDEX($D53:$D55,F53,1))","v":0},"p-value <0.001"]
[null,null,null,0]
[]
[null,16,"Were the following parameters measured and stated? (3 marks if measured and stated, 1 mark if just measured)."]
[null,null,null,3,null,2,{"$f":"IF(F57=0,0,INDEX($D57:$D59,F57,1))","v":1},"Stated but not clear where or how measured"]
[null,16.10,"Conductivity/Salinity",1]
[null,null,null,0]
[null,null,null,3,null,2,{"$f":"IF(F60=0,0,INDEX($D60:$D62,F60,1))","v":1},"Stated but not clear where or how measured"]
[null,16.20,"Dissolved Oxygen",1]
[null,null,null,0]
[null,null,"pH",3,null,2,{"$f":"IF(F63=0,0,INDEX(D63:D65,F63,1))","v":1},"Stated but not clear where or how measured"]
[null,16.30,null,1]
[null,null,null,0]
[null,null,"Was the temperature measured and stated (3 marks)? Award 1 mark if the temperature was measured but not stated or if only the temperature settings of the room or chamber are stated.\n\n",3,null,2,{"$f":"IF(F66=0,0,INDEX(D66:D68,F66,1))","v":1},"Room temperature only"]
[null,17,null,1]
[null,null,null,0]
[null,null,"Were test solutions, blanks and/or controls tested for contamination OR were analytical reagent grade chemicals used or the highest possible purity chemicals used for the experiment? (3 marks).",3,null,1,{"$f":"IF(F69=0,0,INDEX($D69:$D70,F69,1))","v":3},"Control measured, blanks measured, SRM measured"]
[null,18,null,0]
[]
[null,null,null,null,null,null,null,null,{"$f":"(COUNTIF(F12:F70,\"=0\"))+COUNTIF(F1:F10,\"=0\")+COUNTIF(D2:D7,\"=0\")","v":0}]
[]
[]
[null,null,"Total score",null,null,null,{"$f":"IF(SUM(G12:G69)=0,\"\",SUM(G12:G69))","v":69}]
[null,null,"Total Max. possible score for the various types of data and contaminants ",null,{"$f":"D12+D15+D18+D21+D23+D26+D29+D32+D35+D38+D41+D44+D47+D50+D53+D57+D60+D66+D69+D63","v":94}]
[null,null,"Quality Score",null,{"$f":"\"= [Total score / Total possible score] * 100 = \"","v":"= [Total score / Total possible score] * 100 = "},null,{"$f":"IF(ISERROR(G75/E76),#N/A,G75/E76)","v":0.73404255319148937},{"$f":"IF(F41=3,\"The highest possible grade for this datum is acceptable.\",\"\")","v":""}]
[]
[null,null,"H = high quality                           Quality score ≥ 80%"]
[null,null,"A = acceptable quality         > 50% Quality score < 80%  "]
[null,null,"U = unacceptable quality              Quality score ≤ 50%"]
[]
[3,null,"Click the 'Save & Update' button to save and export the answers to the 'All results' worksheet. "]
[null,null,"Select the 'Reset Answers' button if you wish to clear all answers."]

{"sheet":"MEW nonplant_WS","index":6,"n_rows":77,"n_cols":24,"rows_kept":77,"cut":false,"hidden":false,"merged":[]}
[]
["Question No.",1,2,3,4,5,6,7,8,9,10,11,12,13,14,15,16.10,16.20,16.30,17,18,"Total Score","Quality Score"]
["Short Questions","Duration of the exposure ","Biological endpoint","Biological effect stated or not","Biological effect quantified or not","Appropriate controls","Control & contaminant concentration","Test acceptability criteria","Characteristics of the test organism"," Type of test media","Type of exposure","Contaminant concentrations","Parallel reference toxicant toxicity tests","Concentration–response relationship","Determine the toxicity","NOEC/LOEC or LC/EC/BEC","Conductivity/Salinity","Dissolved Oxygen","PH","Temperature","Grade or purity"]
["Marks Awarded ","10 or 0","10,5 or 0","5 or 0 ","5 or 0 ","5 or 0 ","5 or 0 ","5 or 0 ","5 or 0 ","5 or 0 ","4 or 0","4 or 2 or 0","4 or 2","4 or 2","4 or 2","4 or 2","3 or 1 or 0","3 or 1 or 0","3 or 1 or 0","3 or 0","3 or 0 "]
["Max. Possible Score",10,10,5,5,5,5,5,5,5,4,4,4,4,4,4,3,3,3,3,3,{"$f":"SUM(B5:U5)","v":94}]
["Category","MEW_nonplant","Paper and data unique identifier(eg. 1-1,10-150)","1435-2"]
["Scores",10,10,5,5,5,5,2,5,5,4,0,0,4,4,4,3,0,3,1,3,78,0.82978723404255317,"The highest possible grade for this datum is acceptable."]
["Answers","72 h","Developmental categories described ","EC10, EC50, NOEC","","FSW control","Three replicates","Acceptability criteria inferred by reference to USEPA. Controls normal development stated (80-92%)","No longer than 1 hr post fertilisation","FSW","Static (assay conducted in glass jars)","Stock solutions  measured only","","Stated and observable","Probit regression","95% CI provided","","","","","Stock solutions measured "]
["Category","MEW_nonplant","Paper and data unique identifier(eg. 1-1,10-150)","1435-2"]
["Scores",10,10,5,5,5,5,2,5,5,4,0,0,4,4,4,3,0,3,1,3,78,0.82978723404255317,"The highest possible grade for this datum is acceptable."]
["Answers","72 h","Developmental categories described ","EC10, EC50, NOEC","","FSW control","Three replicates","Acceptability criteria inferred by reference to USEPA. Controls normal development stated (80-92%)","No longer than 1 hr post fertilisation","FSW","Static (assay conducted in glass jars)","Stock solutions  measured only","","Stated and observable","Probit regression","95% CI provided","","","","","Stock solutions measured "]
["Category","MEW_nonplant","Paper and data unique identifier(eg. 1-1,10-150)","1435-2"]
["Scores",10,10,5,5,5,5,2,5,5,4,0,0,4,4,4,3,0,3,1,0,75,0.7978723404255319,"The highest possible grade for this datum is acceptable."]
["Answers","72 h","Developmental categories described ","EC10, EC50, NOEC","","FSW control","Three replicates","Acceptability criteria inferred by reference to USEPA. Controls normal development stated (80-92%)","No longer than 1 hr post fertilisation","FSW","Static (assay conducted in glass jars)","Stock solutions  measured only","","Stated and observable","Probit regression","95% CI provided","","","","","Stock solutions measured "]
["Category","MEW_nonplant","Paper and data unique identifier(eg. 1-1,10-150)","1435-1"]
["Scores",10,10,5,5,5,5,2,5,5,4,0,0,4,4,4,3,0,3,1,0,75,0.7978723404255319,"The highest possible grade for this datum is acceptable."]
["Answers","72 h","Developmental categories described ","EC10, EC50, NOEC","","FSW control","Three replicates","Acceptability criteria inferred by reference to USEPA. Controls normal development stated (80-92%)","No longer than 1 hr post fertilisation","FSW","Static (assay conducted in glass jars)","Stock solutions  measured only","","Stated and observable","Probit regression","95% CI provided","","","","","Stock solutions measured "]
["Category","MEW_nonplant","Paper and data unique identifier(eg. 1-1,10-150)","1442-1"]
["Scores",10,10,5,5,5,5,0,5,0,0,2,0,4,4,0,0,0,0,0,3,58,0.61702127659574468,""]
["Answers","5 hours, 30 mins","Percentage fertilisation; number of eggs that had undergone cleavage","EC50, EC10, EC90","Using measured metal concs","Seawater control","Five replicates","Not provided","Eggs and spermatozoa, number provided","Seawater, but location or filtering not stated","Not stated, but static","At start only ","No","Stated and observed in Fig 1","Probit analysis of measured concs","No Confidence interval for EC10","No","No","No","No","Copper measured in control"]
["Category","MEW_nonplant","Paper and data unique identifier(eg. 1-1,10-150)","669-1"]
["Scores",10,10,5,5,5,5,5,5,5,0,2,4,4,4,0,0,0,0,3,0,72,0.76595744680851063,""]
["Answers","48 hour","Development of D-veliger larvae; abnormal in misshapen or failed to develop from zygote or trochophore stages","NOEC","Yes","Yes","5 replicates","Stated in the results section, para 1.","Egg/ spermatozoa mixture","Filtered (5 um) UV-sterilised natural seawater","Static but not stated","At least once, but not stated","SDS, 4-CP, other metals","Observable and stated","ANOVA and Dunnett's test","Not stated","Not reported","Not reported","Not reported","Measured","Not stated"]
["Category","MEW_nonplant","Paper and data unique identifier(eg. 1-1,10-150)","755-1"]
["Scores",10,10,5,5,5,5,0,5,5,4,4,0,4,4,4,3,3,3,3,3,85,0.9042553191489362,""]
["Answers","28 d","A juvenile was recorded if a minimum of eight tentacles of any length could be seen","EC10","","0 copper, seawater control","10 replicates","No","Adults, 3-4mm","Seawater, collection location specified","Static renewal, renewed every 48 hr","Samples of each test solution were taken at test commencement and ten renewal times","No","Stated but a lot of variability","Linear interpolation with ToxCalc","CI provided","Increased over time","7.26 to 8.46","8.15 to 8.48","25C","Analar grade, lab ware washed in HCl"]
["Category","MEW_nonplant","Paper and data unique identifier(eg. 1-1,10-150)","1444-1"]
["Scores",10,10,5,5,5,5,0,5,5,0,4,0,4,4,4,3,3,3,3,3,81,0.86170212765957444,""]
["Answers","14 d","Lacerate numbers expressed as percent\nreproduction and presented relative to the control response.","EC10","","Seawater control","Duplicates with 5 adults per container","Not provided","Adults 5 or 10 mm oral disc diameter","Filtered seawater (0.45 um), collected from Nightcliff, Darwin","Not stated, but description shows static-renewal","All test solutions at time 0h, some at 14-d","No","Observable in Fig. 3","3-parameter sigmoidal or logistic regression","EC10 with 95% confidence limits","Measured at start, mid- and end; Mean and SD provided in Table 1","Measured at start, mid- and end; Mean and SD provided in Table 1","Measured at start, mid- and end; Mean and SD provided in Table 1","Measured at start, mid- and end; Mean and SD provided in Table 1","Lab ware soaked in HNO3, Analytical grade reagents, Milli-Q water"]
["Category","MEW_nonplant","Paper and data unique identifier(eg. 1-1,10-150)","1424-2"]
["Scores",10,10,5,5,5,5,0,5,5,0,2,0,4,4,4,3,0,1,1,3,72,0.76595744680851063,""]
["Answers","48 h","Development, into D-larvae","EC10","","No added copper","Treatments replicated 4 times","Not stated or inferred, but description in results states acceptable development rates in controls ","Embryos, mostly 2- 4-cell stage","Mixtures of natural estuarine water, artificial seawater and DI water","No stated, but static","Measured at start for all tests; start & end for some concentrations","No","Observed in Fig.S4","3-parameter log-logistic function","EC10 with standard error","Measured at start & end of test","Not measured or stated","Measured at end of test, but not reported","Stated as 16C","Analar grade Cu; acid washing of labware; Cu measured in control (1ug/L)"]
["Category","MEW_nonplant","Paper and data unique identifier(eg. 1-1,10-150)","730-2"]
["Scores",10,10,5,5,5,5,5,5,5,0,2,0,4,0,4,1,3,3,1,0,73,0.77659574468085102,""]
["Answers","48 h","Development in D-shared prodissoconch larvae","EC20","","Seawater control","Five replicates","Tests in which control development was less than 80% normal were discarded","Fertilised embryos","Seawater, filtered to 0.2um","No, but was static","Not stated when measured","No ref test","Observable in Fig.3","ToxCalc used but model not specified","EC20 with 95% CI","Measured but not reported","Measured in each treatment and prior to termination, >5mg/L","Measured in each treatment and prior to termination, reported in Table 1","Incubator maintained at 16C","Analar grade, but not stated if lab ware acid washed"]
["Category","MEW_nonplant","Paper and data unique identifier(eg. 1-1,10-150)","1391-2"]
["Scores",10,0,0,5,5,5,0,5,5,0,4,0,0,0,0,0,0,0,1,3,43,0.45744680851063829,""]
["Answers","28 d","Growth, condition factor","No, assumed from statistical diff","Condition factor","Seawater control","Three replicate tanks per treatment; 16 fish per tank","Not stated or inferred","juvenile, 7-8 cm in length","Sand-filtered seawater","But description shows static renewal","Every three days","No","Insufficient test concs to see dose-response","","Yes, p-value < 0.05","Unclear","Unclear","Unclear","23C","background concs 2.93 ug/L"]
["Category","MEW_nonplant","Paper and data unique identifier(eg. 1-1,10-150)","1014-5-10"]
["Scores",10,10,5,5,5,5,0,5,5,4,4,0,4,0,4,3,3,3,3,3,81,0.86170212765957444,""]
["Answers","12 d","Development; no. embryos with terata, no. hatched larvae with terata","NOEC","Number of embryos with terata, no. hatched larvae with terata","Seawater control","20 replicates","Not stated or reported","Single early blastula embryos, stage 8-9","0.2um filtered,  UV-steriliszed seawater, 33ppt","Static toxicity tests","Measured at start and end","Copper is a reference","Observable in Fig.3","Pairwise comparisons with adjusted p-value","Adjusted p-value <0.05","Measured at start and end; reported in results","Measured at start and end; reported in results","Measured at start and end; reported in results","Monitored daily","Seawater contained <3ug/L total copper"]
["Category","MEW_nonplant","Paper and data unique identifier(eg. 1-1,10-150)","1397-1"]
["Scores",10,10,0,5,5,5,0,5,5,0,2,0,4,4,4,0,0,0,1,3,63,0.67021276595744683,""]
["Answers","20 d","Clear definitions","Not stated","% attachment","Seawater control","6 replicate dishes","Control % survival & attachment low for some species /tests. Unacceptable?","Larvae","Seawater filtered to 0.2um","Not stated, but it was static with renewal","Measured at start of test only","No","","Tukeys post-hoc test","","Not measured or stated","Not measured or stated","Not measured or stated","Only stated","Analar grade and all lab ware acid washed"]
["Category","MEW_nonplant","Paper and data unique identifier(eg. 1-1,10-150)","1237-1,11,16"]
["Scores",10,10,0,5,5,5,0,5,5,0,2,0,4,4,4,1,0,0,1,3,64,0.68085106382978722,""]
["Answers","8 d","survivorship, duration of development of tro-\nchophores and % trochophores settled","Data taken from graph","% Survivorship","Control ASW","Each 5 replicates, of 20-35 individuals","Neither inferrred nor stated","Embryos at trochopore stage","Artificial sea water","Not stated, static","Measured at beginning at after 1d, but not at end","No","Observable in Fig.2 ","ANOVA & Tukeys after converting to parametric ranks","p-value 0.05","Stated","Not measured","Not measured","Chamber temp reported","Background Cu using DPASV = 0.81 ug/L"]
["Category","MEW_nonplant","Paper and data unique identifier(eg. 1-1,10-150)","1445-1"]
["Scores",10,10,5,5,5,5,5,5,5,4,4,4,0,4,4,3,3,3,3,3,90,0.95744680851063835,""]
["Answers","96 h","% successful transition to cyprid","EC10","EC10","Seawater","4 replicates","See table 1","Newly hatched stage II nauplii","UV-sterilized, natural seawater (32–35 psu), which was passed through a 0.5 μm spun polypropylene cartridge filter (dilutionwater)","Static, no renewal, see table 1","Start and end","Other metals tested too","Not really","Different for each metal","95% confidence limits 23-33","see Table 2","see Table 2","see Table 2","see Table 2","Copper 0.62 ug/L in dilution water"]
["Category","MEW_nonplant","Paper and data unique identifier(eg. 1-1,10-150)","1441-1"]
["Scores",10,10,5,5,5,5,5,5,5,0,4,0,4,4,4,3,3,3,3,3,86,0.91489361702127658,""]
["Answers","48 hour","Embryo development into D-shaped larvae","EC","EC10","Seawater + brine controls","5 replicates","Embryo development >80% in controls","Embryos within 2 hours of fertilisation","Mixture of seawater, estuarine water, brine and UP water; filtered 0.2 um","Not stated (in test tubes, so static)","beginning and end","No","Yes, observable in data in Supp Info","CETIS , log-normal probit or Trimmed Spearman-Karber","95% confidence levels provided","Measured and results stated","Measured and results stated","Measured and results stated","Measured and results stated","Acid-washed equipment; procedural blanks; reference materials analysed"]
["Category","MEW_nonplant","Paper and data unique identifier(eg. 1-1,10-150)","1441-5"]
["Scores",10,10,5,5,5,5,5,5,5,0,4,0,4,4,4,3,3,3,3,3,86,0.91489361702127658,""]
["Answers","48 hour","Embryo development into D-shaped larvae","EC","EC10","Seawater + brine controls","5 replicates","Embryo development >80% in controls","Embryos within 2 hours of fertilisation","Mixture of seawater, estuarine water, brine and UP water; filtered 0.2 um","Not stated (in test tubes, so static)","beginning and end","No","Yes, observable in data in Supp Info","CETIS , log-normal probit or Trimmed Spearman-Karber","95% confidence levels provided","Measured and results stated","Measured and results stated","Measured and results stated","Measured and results stated","Acid-washed equipment; procedural blanks; reference materials analysed"]
["Category","MEW_nonplant","Paper and data unique identifier(eg. 1-1,10-150)","1441-6"]
["Scores",10,10,5,5,5,5,5,5,5,0,4,0,4,4,4,3,3,3,3,3,86,0.91489361702127658,""]
["Answers","48 hour","Embryo development into D-shaped larvae","EC","EC10","Seawater + brine controls","5 replicates","Embryo development >80% in controls","Embryos within 2 hours of fertilisation","Mixture of seawater, estuarine water, brine and UP water; filtered 0.2 um","Not stated (in test tubes, so static)","beginning and end","No","Yes, observable in data in Supp Info","CETIS , log-normal probit or Trimmed Spearman-Karber","95% confidence levels provided","Measured and results stated","Measured and results stated","Measured and results stated","Measured and results stated","Acid-washed equipment; procedural blanks; reference materials analysed"]
["Category","MEW_nonplant","Paper and data unique identifier(eg. 1-1,10-150)","1441-7"]
["Scores",10,10,5,5,5,5,5,5,5,0,4,0,4,4,4,3,3,3,3,3,86,0.91489361702127658,""]
["Answers","48 hour","Embryo development into D-shaped larvae","EC","EC10","Seawater + brine controls","5 replicates","Embryo development >80% in controls","Embryos within 2 hours of fertilisation","Mixture of seawater, estuarine water, brine and UP water; filtered 0.2 um","Not stated (in test tubes, so static)","beginning and end","No","Yes, observable in data in Supp Info","CETIS , log-normal probit or Trimmed Spearman-Karber","95% confidence levels provided","Measured and results stated","Measured and results stated","Measured and results stated","Measured and results stated","Acid-washed equipment; procedural blanks; reference materials analysed"]
["Category","MEW_nonplant","Paper and data unique identifier(eg. 1-1,10-150)","1441-8"]
["Scores",10,10,5,5,5,5,5,5,5,0,4,0,4,4,4,3,3,3,3,3,86,0.91489361702127658,""]
["Answers","48 hour","Embryo development into D-shaped larvae","EC","EC10","Seawater + brine controls","5 replicates","Embryo development >80% in controls","Embryos within 2 hours of fertilisation","Mixture of seawater, estuarine water, brine and UP water; filtered 0.2 um","Not stated (in test tubes, so static)","beginning and end","No","Yes, observable in data in Supp Info","CETIS , log-normal probit or Trimmed Spearman-Karber","95% confidence levels provided","Measured and results stated","Measured and results stated","Measured and results stated","Measured and results stated","Acid-washed equipment; procedural blanks; reference materials analysed"]
["Category","MEW_nonplant","Paper and data unique identifier(eg. 1-1,10-150)","1441-9"]
["Scores",10,10,5,5,5,5,5,5,5,0,4,0,4,4,4,3,3,3,3,3,86,0.91489361702127658,""]
["Answers","48 hour","Embryo development into D-shaped larvae","EC","EC10","Seawater + brine controls","5 replicates","Embryo development >80% in controls","Embryos within 2 hours of fertilisation","Mixture of seawater, estuarine water, brine and UP water; filtered 0.2 um","Not stated (in test tubes, so static)","beginning and end","No","Yes, observable in data in Supp Info","CETIS , log-normal probit or Trimmed Spearman-Karber","95% confidence levels provided","Measured and results stated","Measured and results stated","Measured and results stated","Measured and results stated","Acid-washed equipment; procedural blanks; reference materials analysed"]
["Category","MEW_nonplant","Paper and data unique identifier(eg. 1-1,10-150)","1404-2"]
["Scores",10,10,0,5,5,5,0,5,5,0,4,0,4,0,4,3,3,3,3,3,72,0.76595744680851063,""]
["Answers","25 days of exposure","Growth, weight of fish body","Implied ","","\"No copper\" control","Triplicates","Not stated or inferred","Yes, average weight and body length reported","Artificial seawater","Not stated ","Measured before & after each water change, summary data reported in methods.","No","Yes, but only 2 concentrations tested","ANOVA","p-value <0.05","Measured before & after each water change, summary data reported in methods.","Measured before & after each water change, summary data reported in methods.","Measured before & after each water change, summary data reported in methods.","Measured before & after each water change, summary data reported in methods.",""]
["Category","MEW_nonplant","Paper and data unique identifier(eg. 1-1,10-150)","1404-7"]
["Scores",10,10,0,5,5,5,0,5,5,0,4,0,4,0,4,3,3,3,3,3,72,0.76595744680851063,""]
["Answers","25 days of exposure","Growth, weight of fish body","Implied ","","\"No copper\" control","Triplicates","Not stated or inferred","Yes, average weight and body length reported","Artificial seawater","Not stated ","Measured before & after each water change, summary data reported in methods.","No","Yes, but only 2 concentrations tested","ANOVA","p-value <0.05","Measured before & after each water change, summary data reported in methods.","Measured before & after each water change, summary data reported in methods.","Measured before & after each water change, summary data reported in methods.","Measured before & after each water change, summary data reported in methods.",""]
["Category","MEW_nonplant","Paper and data unique identifier(eg. 1-1,10-150)","1429-1"]
["Scores",10,10,5,5,5,5,2,5,5,0,2,0,4,4,0,1,1,1,1,3,69,0.73404255319148937,""]
["Answers","48 hours","Normal larvae have achieved the pluteus stage of development, which is characterized by pyramidal shaped larvae with four highly\ndeveloped skeletal rods and a distinct gut","NOEC","NOEC","Two sea water controls from different sources","4 replicates per treatment","Refers to USEPA procedures for urchins","Gametes","Dilution water consisted of uncontaminated Pago Bay surface seawater filtered to 0.45 um","Not stated","Not clear, assume measured once","No","Observable in Table 2","CETIS using Dunnetts for NOEC","p-value <0.001","Stated but not clear where or how measured","Stated but not clear where or how measured","Stated but not clear where or how measured","Room temperature only","Control measured, blanks measured, SRM measured"]

{"sheet":"MEW plant","index":7,"n_rows":81,"n_cols":53,"rows_kept":81,"cut":false,"hidden":false,"merged":[[3,4,7,4],[9,2,9,4],[11,2,13,2],[11,7,13,7],[14,2,16,2],[14,7,16,7],[17,2,19,2],[17,7,19,7],[20,2,21,2],[20,7,21,7],[22,2,24,2],[25,2,27,2],[28,2,30,2],[31,2,33,2],[34,2,36,2],[37,2,39,2],[37,7,39,7],[40,2,42,2],[40,7,42,7],[43,2,45,2],[43,7,45,7],[46,2,48,2],[46,7,48,7],[49,2,51,2],[49,7,51,7],[56,1,58,1],[56,2,58,2],[56,7,58,7],[65,2,68,2],[65,7,68,7],[52,2,54,2],[52,7,54,7],[59,7,61,7],[62,2,64,2],[62,7,64,7]]}
[null,1,"Fill in the blank cells below, based on information provided in the paper being assessed. You can either pick an option from the dropdown list or add the appropriate detail using the 'Add to list' button. ",null,null,{"$f":"IF(BA3=\"\",0,1)","v":1},null,null,null,null,null,null,null,null,"* All the text in RED are used for drop down list ,make changes with caution."]
[null,null,"Category",{"$f":"IF(AF3=\"\",0,1)","v":1},"MEW_plant",{"$f":"IF(E3=\"\",0,1)","v":1},"Citation No.",{"$f":"IF(ISERROR(FIND(\"-\",E3)),E3,LEFT(E3,FIND(\"-\",E3)-1))","v":"638"},null,"Taxonomic group",null,null,null,null,"Species",null,null,"Lifestage",null,null,"Exposure duration",null,null,"Measure of toxicity",null,null,"Toxicity endpoint",null,null,"Taxonomic group",null,null,"Phylum",null,null,"Class",null,null,"Media",null,null,"Temperature ",null,null,"Acute Or Chronic",null,null,"PH",null,null,"Salinity/Comdictivity"]
[null,null,"Paper and data unique identifier(eg. 1-1,10-150)",{"$f":"IF(AI3=\"\",0,1)","v":1},"638-3",{"$f":"IF(E4=\"\",0,1)","v":1},"Species (Scientific name)",null,null,"Phylum",null,null,null,null,"Aedes albopictus",17,{"$f":"IF(P3=0,\"\",INDEX(O3:O102,P3))","v":"Ulva fasciata"},"1 month",4,{"$f":"IF(S3=0,\"\",INDEX(R3:R102,S3))","v":"Germlings"},"11 hour",7,{"$f":"IF(V3=0,\"\",INDEX(U3:U102,V3))","v":"96 h"},"EC10",8,{"$f":"IF(Y3=0,\"\",INDEX(X3:X102,Y3))","v":"NOEC"},"Attached biomass",10,{"$f":"IF(AB3=0,\"\",INDEX(AA3:AA102,AB3))","v":"Reproduction"},"Blue-green algae",5,{"$f":"IF(AE3=0,\"\",INDEX(AD3:AD102,AE3))","v":"Green algae"},"Bacillariophyta",2,{"$f":"IF(AH3=0,\"\",INDEX(AG3:AG102,AH3))","v":"Chlorophyta"},"Bacillariophyceae",10,{"$f":"IF(AK3=0,\"\",INDEX(AJ3:AJ102,AK3))","v":"Ulvophyceae"},"0.2 um-filtered autoclaved natural seawater",6,{"$f":"IF(AN3=0,\"\",INDEX(AM3:AM102,AN3))","v":"Filtered seawater"},19,2,{"$f":"IF(AQ3=0,\"\",INDEX(AP3:AP102,AQ3))","v":20},"Acute",2,{"$f":"IF(AT3=0,\"\",INDEX(AS3:AS102,AT3))","v":"Chronic"},8,9,{"$f":"IF(AW3=0,\"\",INDEX(AV3:AV102,AW3))","v":"NR"},31,13,{"$f":"IF(AZ3=0,\"\",INDEX(AY3:AY102,AZ3))","v":"NR"}]
[null,null,"Citation",{"$f":"IF(AL3=\"\",0,1)","v":1},"Hooten RL, Carr RS. (1998). Development and application of a marine sediment pore-water toxicity test using Ulva fasciata zoospores. Environmental Toxicology and Chemistry 17, 932-940.",{"$f":"IF(H8=\"\",0,1)","v":1},"Lifestage",null,null,"Class",null,null,null,null,"Australian Bass",null,null,"1 year old",null,null,"13 days",null,null,"IC10",null,null,"Development",null,null,"Brown algae",null,null,"Chlorophyta",null,null,"Branchiopoda",null,null,"1um filtered, UV-irradiated seawater",null,null,20,null,null,"Chronic",null,null,8.10,null,null,32]
[null,null,null,{"$f":"IF(AO3=\"\",0,1)","v":1},null,{"$f":"IF(AX3=\"\",0,1)","v":1},"Exposure duration",null,null,"Media",null,null,null,null,"Ceratoneis closterium",null,null,"Exponentially-growing",null,null,"14 d",null,null,"IC15",null,null,"Fish ",null,null,"Diatom",null,null,"Cyanobacteria",null,null,"Chlorodendrophyceae",null,null,"Artificial seawater",null,null,21,null,null,"N.A.",null,null,8.1999999999999993,null,null,33]
[null,null,null,{"$f":"IF(AR3=\"\",0,1)","v":1},null,{"$f":"IF(Q3=\"\",0,1)","v":1},"Measure of toxicity",null,null,"Temperature ",null,null,null,null,"Chlorella sp.",null,null,"Germlings",null,null,"16 d",null,null,"IC20",null,null,"Growth",null,null,"Fish ",null,null,"Cyanophycota",null,null,"Chlorophyceae",null,null,"cell culture media for marine algae",null,null,22,null,null,null,null,null,"7.75-7.9",null,null,35]
[null,null,null,{"$f":"IF(AU3=\"\",0,1)","v":1},null,{"$f":"IF(T3=\"\",0,1)","v":1},"Toxicity endpoint",null,null,"Acute Or Chronic ",null,null,null,null,"Cyanobium sp.",null,null,"N.A.",null,null,"2 d",null,null,"LC50",null,null,"Growth",null,null,"Green algae",null,null,"Haptophyta",null,null,"Cyanophyceae",null,null,"Filtered natural seawater",null,null,27,null,null,null,null,null,"7.8-8.3",null,null,36]
[null,null,null,null,null,{"$f":"IF(W3=\"\",0,1)","v":1},"Toxicity value",27.30,null,"PH",null,null,null,null,"Dunaliella",null,null,"Spores",null,null,"72 h",null,null,"N.A.",null,null,"Microalga",null,null,"Microalga",null,null,"N.A.",null,null,"N.A.",null,null,"Filtered seawater",null,null,"11.5-17",null,null,null,null,null,"7.9-8.2",null,null,"150 uS/cm"]
[null,2,"Select the appropriate answer option to each question. Comments can be added to the cells in column H.",null,null,{"$f":"IF(Z3=\"\",0,1)","v":1},null,null,null,"Salinity/Conductivity",null,null,null,null,"Dunaliella teriolecta",null,null,"Zoospores",null,null,"96 h",null,null,"NEC",null,null,"N.A.",null,null,"N.A.",null,null,"Ochrophyta",null,null,"Phaeophyceae",null,null,"Freshwater",null,null,"13-15",null,null,null,null,null,"8-8.6",null,null,"30 ppt"]
[null,"*","If the selected answer option does not work try clicking on any other cell first and then click back on the answer option again.",null,null,{"$f":"IF(AC3=\"\",0,1)","v":1},null,null,null,null,null,null,null,null,"Entomoneis c.f. punctulata",null,null,null,null,null,"N.A.",null,null,"NOEC",null,null,"Population abundance",null,null,null,null,null,"Tracheophyta",null,null,"Prasinophyceae",null,null,"Marinewater",null,null,"15°C",null,null,null,null,null,"N.A.",null,null,"32-39"]
[null,"No.","Question","Marks Awarded","Answer Options","Option References","Scores","Answers",null,null,null,null,null,null,"Fucus vesiculosus",null,null,null,null,null,null,null,null,"NOEC",null,null,"Population growth",null,null,null,null,null,null,null,null,"Prymnesiophyceae",null,null,"N.A.",null,null,"25°C",null,null,null,null,null,"NR",null,null,"34 ppt"]
[null,null,"Was the duration of the exposure stated (e.g. 48 or 96 h)?",10,null,1,{"$f":"IF(F15=0,0,INDEX($D12:$D13,F12,1))","v":10},"96 hr",null,null,null,null,null,null,"Isochrysis galbana",null,null,null,null,null,null,null,null,null,null,null,"Reproduction",null,null,null,null,null,null,null,null,"Ulvophyceae",null,null,"Natural seawater",null,null,"N.A.",null,null,null,null,null,"PH11",null,null,"34-36"]
[null,1,null,0,null,null,null,null,null,null,null,null,null,null,"Macrocystis pyrifera",null,null,null,null,null,null,null,null,null,null,null,"Settlement and growth",null,null,null,null,null,null,null,null,"Ulvophyceae",null,null,null,null,null,null,null,null,null,null,null,"PH7.0",null,null,"35-37"]
[null,null,null,null,null,null,null,null,null,null,null,null,null,null,"N.A.",null,null,null,null,null,null,null,null,null,null,null,null,null,null,null,null,null,null,null,null,null,null,null,null,null,null,null,null,null,null,null,null,null,null,null,"N.A."]
[null,null,"Was the biological endpoint (e.g., immobilization or population growth) stated and defined (10 marks)? Award 5 marks if the biological endpoint is only stated.",10,null,2,{"$f":"IF(F15=0,0,INDEX($D15:$D17,F15,1))","v":5},"Some defined, some only stated (Gametophyte length (growth); germination and number of cells per gametophyte; reference to other studies)",null,null,null,null,null,null,"Phaeodactylum tricornutum",null,null,null,null,null,null,null,null,null,null,null,null,null,null,null,null,null,null,null,null,null,null,null,null,null,null,null,null,null,null,null,null,null,null,null,"NR"]
[null,2,null,5,null,null,null,null,null,null,null,null,null,null,"Synechococcus"]
[null,null,null,0,null,null,null,null,null,null,null,null,null,null,"Tetraselmis chuii"]
[null,null,"Was the biological effect stated (e.g. LC or NOEC)?",5,null,1,{"$f":"IF(F18=0,0,INDEX($D18:$D19,F18,1))","v":5},"NOEC",null,null,null,null,null,null,"Tetraselmis sp."]
[null,3,null,0,null,null,null,null,null,null,null,null,null,null,"Ulva fasciata"]
[null,null,null,null,null,null,null,null,null,null,null,null,null,null,"Ulva lactuca"]
[null,4,"Was the biological effect quantified (e.g. 50% effect, 25% effect)? \nNote: The effect for NOEC and LOEC data must be quantified.",5,null,1,{"$f":"IF(F21=0,0,INDEX($D21:$D22,F21,1))","v":5},"NOEC"]
[null,null,null,0]
[null,5,"Were appropriate controls (e.g. a no-toxicant control and/or solvent control) used?",5,null,1,{"$f":"IF(F23=0,0,INDEX($D23:$D24,F23,1))","v":5},"Dilution water only control"]
[null,null,null,0]
[]
[null,6,"Was each control and contaminant concentration at least duplicated?",5,null,1,{"$f":"IF(F26=0,0,INDEX($D26:$D27,F26,1))","v":5}]
[null,null,null,0,null,null,null,"5 replicates"]
[]
[null,7,"Were test acceptability criteria stated (e.g. mortality in controls must not exceed a certain percentage) (5 marks)?\nOR Were test acceptability criteria inferred (e.g. test method used [USEPA, OECD, ASTM etc.]) (award 2 marks). \nNote: Data that fail the acceptability criteria are automatically deemed to be of unacceptable quality and must not be used. ",5,null,3,{"$f":"IF(F29=0,0,INDEX($D29:$D31,F29,1))","v":0},"Not stated or inferred. Some reporting in results section."]
[null,null,null,2]
[null,null,null,0]
[null,8,"Were the characteristics of the test organism (e.g. length, mass, age) stated?",5,null,1,{"$f":"IF(F32=0,0,INDEX($D32:$D34,F32,1))","v":5},"Zoospores"]
[null,null,null,0]
[]
[null,9,"Was the type of test media used stated?",5,null,1,{"$f":"IF(F35=0,0,INDEX($D35:$D37,F35,1))","v":5}]
[null,null,null,0,null,null,null,"Filtered (0.45um) seawater diluted to 85% with pore water extracted from reference site sediments"]
[]
[null,null,"Was the type of exposure (e.g. static, flow through) stated? ",4,null,2,{"$f":"IF(F38=0,0,INDEX($D38:$D40,F38,1))","v":0},"Not stated, but was static"]
[null,10,null,0]
[]
[null,null,"Were the contaminant concentrations measured at the beginning and end of the exposure (4 marks)? Award 2 marks if they were measured only once during the test.\nNote: If the concentrations were not measured then automatically the data cannot be high quality. ",4,null,3,{"$f":"IF(F41=0,0,INDEX($D41:$D43,F41,1))","v":0},"Stock solutions measured only"]
[null,11,null,2]
[null,null,null,0]
[null,null,"Were parallel reference toxicant toxicity tests conducted?",4,null,1,{"$f":"IF(F44=0,0,INDEX($D44:$D46,F44,1))","v":4},"SDS"]
[null,12,null,0]
[]
[null,null,"Was there a concentration–response relationship either observable or stated?",4,null,1,{"$f":"IF(F47=0,0,INDEX($D47:$D49,F47,1))","v":4},"Yes, observable in results"]
[null,13,null,0]
[]
[null,null,"Was an appropriate statistical method or model used to determine the toxicity?\nNote: They should be accepted by a recognised national or international regulatory body (e.g. USEPA, OECD, ASTM). ",4,null,1,{"$f":"IF(F50=0,0,INDEX($D50:$D52,F50,1))","v":4},"ANOVA and Dunnett's t test; common method"]
[null,14,null,0]
[]
[null,15,"For LC/EC/BEC data was an estimate of variability provided? \nOR \nFor NO EC/LOEC data was the significance level 0.05 or less?  \n\n",4,null,1,{"$f":"IF(F53=0,0,INDEX($D53:$D55,F53,1))","v":4},"p-value < 0.05"]
[null,null,null,0]
[]
[null,16,"Were the following parameters measured and stated? (3 marks if measured and stated, 1 mark if just measured)."]
[null,16.10,"Conductivity/Salinity",3,null,3,{"$f":"IF(F57=0,0,INDEX(D57:D59,F57,1))","v":0},"Not measured"]
[null,null,null,1]
[null,null,null,0]
[null,null,null,3,null,3,{"$f":"IF(F60=0,0,INDEX($D60:$D62,F60,1))","v":0},"Not measured"]
[null,16.20,"pH ",1]
[null,null,null,0]
[null,null,"Was the temperature measured and stated (3 marks)? Award 1 mark if the temperature was measured but not stated or if only the temperature settings of the room or chamber are stated.\n",3,null,2,{"$f":"IF(F63=0,0,INDEX($D63:$D65,F63,1))","v":1},"Stated"]
[null,17,null,1]
[null,null,null,0]
[null,null,"Were test solutions, blanks and/or controls tested for contamination OR were analytical reagent grade chemicals used or the highest possible purity chemicals used for the experiment? (3 marks).",3,null,2,{"$f":"IF(F66=0,0,INDEX($D66:$D67,F66,1))","v":0},"Not measured"]
[null,18,null,0]
[]
[null,null,null,null,null,null,null,null,{"$f":"(COUNTIF(F12:F67,\"=0\"))+COUNTIF(F1:F10,\"=0\")+COUNTIF(D2:D7,\"=0\")","v":0}]
[]
[]
[null,null,"Total score",null,null,null,{"$f":"IF(SUM(G12:G66)=0,\"\",SUM(G12:G66))","v":62}]
[null,null,"Total Max. possible score for the various types of data and contaminants ",null,{"$f":"D12+D15+D18+D21+D23+D26+D29+D32+D35+D38+D41+D44+D47+D50+D53+D60+D63+D66+D57","v":91}]
[null,null,"Quality Score",null,{"$f":"\"= [Total score / Total possible score] * 100 = \"","v":"= [Total score / Total possible score] * 100 = "},null,{"$f":"IF(ISERROR(G72/E73),#N/A,G72/E73)","v":0.68131868131868134},{"$f":"IF(F41=3,\"The highest possible grade for this datum is acceptable.\",\"\")","v":"The highest possible grade for this datum is acceptable."}]
[]
[null,null,"H = high quality                           Quality score ≥ 80%    "]
[null,null,"A = acceptable quality         > 50% Quality score < 80%  "]
[null,null,"U = unacceptable quality              Quality score ≤ 50%"]
[]
[3,null,"Click the 'Save & Update' button to save and export the answers to the 'All results' worksheet. "]
[null,null,"Select the 'Reset Answers' button if you wish to clear all answers."]

{"sheet":"MEW plant_WS","index":8,"n_rows":59,"n_cols":23,"rows_kept":59,"cut":false,"hidden":false,"merged":[]}
[]
["Question No.",1,2,3,4,5,6,7,8,9,10,11,12,13,14,15,16.10,16.30,17,18,"Total Score","Quality Score","Comment "]
["Short Questions","Duration of the exposure ","Biological endpoint","Biological effect stated or not","Biological effect quantified or not","Appropriate controls","Control & contaminant concentration","Test acceptability criteria","Characteristics of the test organism"," Type of test media","Type of exposure","Contaminant concentrations","Parallel reference toxicant toxicity tests","Concentration–response relationship","Determine the toxicity","NOEC/LOEC or LC/EC/BEC","Conductivity/Salinity","PH","Temperature","Grade or purity"]
["Marks Awarded ","10 or 0","10,5 or 0","5 or 0 ","5 or 0 ","5 or 0 ","5 or 0 ","5 or 0 ","5 or 0 ","5 or 0 ","4 or 0","4 or 2 or 0","4 or 2","4 or 2","4 or 2","4 or 2","3 or 1 or 0","3 or 1 or 0","3 or 0","3 or 0 "]
["Max. Possible Score",10,10,5,5,5,5,5,5,5,4,4,4,4,4,4,3,3,3,3,{"$f":"SUM(B5:T5)","v":91}]
["Category","MEW_plant","Paper and data unique identifier(eg. 1-1,10-150)","1281-2"]
["Scores",10,10,5,5,5,5,5,5,5,0,2,0,0,4,0,1,0,0,0,66,0.72527472527472525,""]
["Answers","72 h","Algal growth rates, cell division rate per hour","NOEC","NOEC, also IC50","But not stated what it was","Three replicates; 2-4 tests","Growth rates >1.2 doublings/day, <20% variability","Exponentially-growing algal cells; source specified","Filtered (0.45um) seawater, supplemented with nitrate and phosphate","Static with renewal","Start of test","No","Not shown or stated","Dunnett's","Not stated","At beginning and end of tests","At beginning and end of tests, stated as <0.8 pH change, from 8.0","At beginning and end of tests","Not stated"]
["Category","MEW_plant","Paper and data unique identifier(eg. 1-1,10-150)","1181-2 & 1181-"]
["Scores",10,5,5,5,5,5,5,5,5,0,4,0,4,4,4,1,0,0,0,72,0.79120879120879117,""]
["Answers","0, 24, 48, 72 h","Growth rate and cell yield","ICs","I think so","0 Cu ","Triplicates for each copper concentration - presume that includes 0 concentration","Test results were considered acceptable if the mean growth rate for the controls was in the range 1.5  0.5 doublings per day.","Exponentially growing from 4-6 day old culture","Seawater, filtered through 0.45 um filters","Not stated","Measured at 0, 24, 48 and 72 h","No","Observable","Linear interpolation using TOXCALC","Confidence intervals provided","Measured but not reported","Measured but not reported","21C","Analytical reagent grade, all lab ware HNO3 washed"]
["Category","MEW_plant","Paper and data unique identifier(eg. 1-1,10-150)","1379-2"]
["Scores",10,5,5,0,5,5,0,5,5,0,2,4,4,4,4,1,0,0,0,64,0.70329670329670335,""]
["Answers","72 h","Growth inhibition, not defined","IC10","No","0 copper treatment","Triplicate and 3 tests run","Not stated","Exponentially-growing, 5-6d old","Filtered natural seawater (0.45um); 35ppt, pH8.2; supplemented with nutrients","Not stated","Not stated when measured","Other toxicants tested too","Yes, observable in Supp Info plots","Linear interpolation, toxCalc","Standard deviation provided","Not stated when measured","Not stated when measured","Not stated when measured","Blanks and CRMs tested"]
["Category","MEW_plant","Paper and data unique identifier(eg. 1-1,10-150)","1416-4"]
["Scores",10,10,5,5,5,5,5,5,5,0,4,0,4,4,4,1,0,0,0,79,0.86813186813186816,""]
["Answers","72 h","Inhibition of biomass yield, defined by formula","IC20","IC20","No copper control","4 replicates; 12 separate tests","Test results were considered acceptable if the mean growth rate for the controls was in the range 1.5  0.5 doublings per day; and coefficient of variation in controls <20%","Exponential phase, 3-6d old","Clean filtered seawater supplemented with NO3 and PO4","Not stated","Measured at least start and end","None","Observable in Fig 1","Linear interpolation with ToxCalc","IC20 with 95% confidence intervals","Says it was measured, but no results reported","Measured at start and end of tests; ranged from 8.0 to 8.6","21C chamber","AR grade Cu, lab ware HNO3 soaked"]
["Category","MEW_plant","Paper and data unique identifier(eg. 1-1,10-150)","1430-1"]
["Scores",10,10,5,5,5,5,5,5,5,0,2,4,4,4,4,3,0,0,0,85,0.93406593406593408,""]
["Answers","72 h","Growth rate, as doublings per day, calculated as slope of line","EC10","","Yes, no added copper","Triplicate concentrations","A test was considered valid if the growth rate of control replicates was 2.00.4 doublings/d.","Exponentially growing, 4d old","Filtered seawater","Not stated","Measured at beginning only","Copper was the reference","Observable in Fig. 3","3-parameter sigmoidal or 3-parameter logistic","95% confidence interval provided","Measured at start and end","Measured at start and end","Measured continuously","Seawater measured for all metals, 1.6 ug/L Cu in seawater"]
["Category","MEW_plant","Paper and data unique identifier(eg. 1-1,10-150)","1287-2"]
["Scores",10,5,5,5,5,5,2,5,5,0,2,0,4,4,0,0,0,0,0,61,0.67032967032967028,""]
["Answers","72 hour","Growth rate inhibition","NOEC","","No added copper","Triplicates","Stated that control growth rates were acceptable but doesn't state what acceptability is ","Exponentially-growing, 5-6 d old","Natural seawater, filtered 0.45um with NO3 and PO4","Not stated","Measured at start","No ref","Yes observable in Fig 2","Dunnett's multiple comparison test","p value <= 0.05","","Recorded initially and after 72h, values reported","Test at 21 C","Not stated"]
["Category","MEW_plant","Paper and data unique identifier(eg. 1-1,10-150)","1287-2"]
["Scores",10,5,5,5,5,5,2,5,5,0,2,0,4,4,0,0,0,0,0,61,0.67032967032967028,""]
["Answers","72 hour","Growth rate inhibition","NOEC","","No added copper","Triplicates","Stated that control growth rates were acceptable but doesn't state what acceptability is ","Exponentially-growing, 5-6 d old","Natural seawater, filtered 0.45um with NO3 and PO4","Not stated","Measured at start","No ref","Yes observable in Fig 2","Dunnett's multiple comparison test","p value <= 0.05","","Recorded initially and after 72h, values reported","Test at 21 C","Not stated"]
["Category","MEW_plant","Paper and data unique identifier(eg. 1-1,10-150)","1287-1"]
["Scores",10,5,5,5,5,5,2,5,5,0,2,0,4,4,0,0,0,0,0,61,0.67032967032967028,""]
["Answers","72 hour","Growth rate inhibition","NOEC","","No added copper","Triplicates","Stated that control growth rates were acceptable but doesn't state what acceptability is ","Exponentially-growing, 5-6 d old","Natural seawater, filtered 0.45um with NO3 and PO4","Not stated","Measured at start","No ref","Yes observable in Fig 2","Dunnett's multiple comparison test","p value <= 0.05","","Recorded initially and after 72h, values reported","Test at 21 C","Not stated"]
["Category","MEW_plant","Paper and data unique identifier(eg. 1-1,10-150)","1287-4"]
["Scores",10,5,5,5,5,5,2,5,5,0,2,0,4,4,0,0,0,0,0,61,0.67032967032967028,""]
["Answers","72 hour","Growth rate inhibition","NOEC","","No added copper","Triplicates","Stated that control growth rates were acceptable but doesn't state what acceptability is ","Exponentially-growing, 5-6 d old","Natural seawater, filtered 0.45um with NO3 and PO4","Not stated","Measured at start","No ref","Yes observable in Fig 2","Dunnett's multiple comparison test","p value <= 0.05","","Recorded initially and after 72h, values reported","Test at 21 C","Not stated"]
["Category","MEW_plant","Paper and data unique identifier(eg. 1-1,10-150)","1287-4"]
["Scores",10,5,5,5,5,5,2,5,5,0,2,0,4,4,0,0,0,0,0,61,0.67032967032967028,""]
["Answers","72 hour","Growth rate inhibition","NOEC","","No added copper","Triplicates","Stated that control growth rates were acceptable but doesn't state what acceptability is ","Exponentially-growing, 5-6 d old","Natural seawater, filtered 0.45um with NO3 and PO4","Not stated","Measured at start","No ref","Yes observable in Fig 2","Dunnett's multiple comparison test","p value <= 0.05","","Recorded initially and after 72h, values reported","Test at 21 C","Not stated"]
["Category","MEW_plant","Paper and data unique identifier(eg. 1-1,10-150)","1037-1 - 1037-14"]
["Scores",10,10,5,5,5,5,0,5,5,4,4,0,4,4,0,1,0,0,0,74,0.81318681318681318,""]
["Answers","48 h","Stated and defined for each effect endpoint","NOEC","percent germination, germ tube lengths","Seawater control","5 replicates; test repeated 4x","Neither stated or inferred","Zoospores","0.2 um filtered seawater","Static exposures","Measured start, end and at each water change","No","In Figs 1, 2, 3","ANOVA and Dunnetts multiple comparison test","p-value <0.05","Measured start and end; reported in results","Measured start and end; reported in results","Measured start and end; reported in results","Control seawater measured, <0.6ug/L"]
["Category","MEW_plant","Paper and data unique identifier(eg. 1-1,10-150)","1266-1,4"]
["Scores",10,10,5,5,5,5,0,5,5,4,4,0,4,0,0,3,0,0,0,71,0.78021978021978022,""]
["Answers","14 d","Growth: total length from rhizoid to apical hair","NEC","Relative growth rate","Seawater control","Five slides of germlings per tank (pseudoreplication)","Neither stated nor inferred","Germlings, approx 48 hrs old","Seawater, filtered through glass-wool, UV-filtration and protein-skimming","Flow-through system","Yes, at 0, 4, 10 and 14d","No.","Observable in Fig.2","Not sure - hockey stick model for NEC","No variability for NEC provided","Mean and SD reported for each test","Mean and SD reported for each test","Maintained at 21C; range in temp reported","Information not provided"]
["Category","MEW_plant","Paper and data unique identifier(eg. 1-1,10-150)","1382-1"]
["Scores",10,10,5,5,5,5,0,5,5,0,2,4,4,4,4,0,0,0,0,68,0.74725274725274726,""]
["Answers","72 hour","Settlement and growth by measuring attached biomass","EC10","EC10","10 controls with DMSO solvent and 10 without","5 replicates for each treatment; 10 reps for controls","No. ","Spores, 1 day old","Seawater, filtered through 0.2 um membrane filter","Not stated, but static-renewal","Not stated, assume once only","4 other antifoulants tested at same time","Observable in Fig.1 ","Extended weibull","95% CI","Not reported","Not reported","Not reported","Not reported"]
["Category","MEW_plant","Paper and data unique identifier(eg. 1-1,10-150)","1423-1"]
["Scores",10,10,5,5,0,5,0,5,5,0,0,0,4,4,4,0,0,0,0,59,0.64835164835164838,"The highest possible grade for this datum is acceptable."]
["Answers","96 hour","The criterion indicative of toxic effects\nwas the inhibition of T. chuii average specific growth rate determined as indicated in section 2.6.","EC10","EC10","Not clear","3 replicates for each treatment; reps for control not stated","No. ","Exponentially growing cells","Artificial seawater ","","Not measured - exclude this study","No","Yes, observable in Figure 2","Probit","95% CI","Not reported","Measured but not stated; only variation reported","Measured but not stated; only variation reported","Not reported"]
["Category","MEW_plant","Paper and data unique identifier(eg. 1-1,10-150)","1393-2"]
["Scores",10,5,5,5,5,5,5,5,5,0,4,0,4,4,4,1,0,0,0,68,0.74725274725274726,""]
["Answers","72 hour","Not clear","EC10","EC10","Seawater","Triplicate","Tests were terminated where control culture doublings did not increase\nby a factor of 16 over 72 h (OECD 1984).","Exponentially growing cells","Sterilised filtered seawater","Appears to be static","Start and end of test","No","Yes, observable in Figure 2","Probit","95% CI","Stated as 33 ppt","Not reported","Chamber temperature stated","Acid-washed equipment"]
["Category","MEW_plant","Paper and data unique identifier(eg. 1-1,10-150)","1446-1,2,3"]
["Scores",10,10,5,5,5,5,5,5,5,4,4,0,4,4,4,3,0,0,0,80,0.87912087912087911,""]
["Answers","72 h","Growth rate - cell division rate","EC10","EC10","Seawater control","Duplicates, 4x replicates for controls; tests repeated 2-3x","Variability in the controls <20%.\nControl algal 72‐h growth rates >1 doubling/day","5-6 days old, exponential growth phase","Natural seawater, 0.45um filtered","Static, non-renewal","Beginning and end of test","No","Observable, fig 1","DRC package in R, log-logistic","95% confidence limits","36 ppt","Monitored but not reported","Monitored but not reported","Blanks not reported"]
["Category","MEW_plant","Paper and data unique identifier(eg. 1-1,10-150)","1446-4"]
["Scores",10,10,5,5,5,5,5,5,5,4,4,0,4,4,4,3,0,0,0,80,0.87912087912087911,""]
["Answers","72 h","Growth rate - cell division rate","EC10","EC10","Seawater control","Duplicates, 4x replicates for controls; tests repeated 3x","Variability in the controls <20%.\nControl algal 72‐h growth rates >1 doubling/day","5-6 days old, exponential growth phase","Natural seawater, 0.45um filtered","Static, non-renewal","Beginning and end of test","No","Observable, fig 1","DRC package in R, log-logistic","95% confidence limits","36 ppt","Monitored but not reported","Monitored but not reported","Blanks not reported"]
["Category","MEW_plant","Paper and data unique identifier(eg. 1-1,10-150)","638-3"]
["Scores",10,5,5,5,5,5,0,5,5,0,0,4,4,4,4,0,0,0,0,62,0.68131868131868134,"The highest possible grade for this datum is acceptable."]
["Answers","96 hr","Some defined, some only stated (Gametophyte length (growth); germination and number of cells per gametophyte; reference to other studies)","NOEC","NOEC","Dilution water only control","","Not stated or inferred. Some reporting in results section.","Zoospores",{"$error":"#REF!"},"Not stated, but was static","Stock solutions measured only","SDS","Yes, observable in results","ANOVA and Dunnett's t test; common method","p-value < 0.05","Not measured","Not measured","Stated","Not measured"]